Workbook

Sheet Sheet1
C1: 2013 LOBBYING SESSION
C2: November 1, 2012 to October 31, 2013
B3: TA=Term. April
B4: TO=Term. October
B5: p2=Period two only | C5: COMPENSATED | AC5: GRAND TOTALS PD COVERING MAY 1, 11-Oct 31, 11
D6: Filing | E6: PD ONE | J6: Exp | K6: TOTAL | M6: All Other | N6: Lobbying Exp | O6: Backed Out | P6: NET TOTAL | Q6: BEGIN PD TWO | R6: Total | V6: Exp | W6: Total | Y6: All Other | Z6: Lobbying Exp | AA6: Backed Out | AB6: NET TOTAL
B7: Lobbyist | C7: Client | D7: CODE | E7: Compensation | F7: Reimb | G7: Recpt | H7: Entmnt | I7: Gifts | J7: all LB | K7: SECTION E | L7: Fees | M7: Exp | N7: Total PD ONE | O7: Exp PD ONE | P7: PD ONE | Q7: Compensation | R7: Reim | S7: Reception | T7: Entertain | U7: Gifts | V7: for All LB | W7: SECTION E | X7: Fees | Y7: Exp | Z7: Total PD TWO | AA7: Exp PD TWO | AB7: PD TWO
A10: 2012/2013 | B10: Abel, Edmund | C10: Blue & Co., LLC | E10: 0 | F10: 0 | G10: 0 | H10: 0 | I10: 0 | J10: 0 | K10: 0 | L10: 100 | M10: 0 | N10: =SUM(E10:M10) -> 100 | O10: 100 | P10: =SUM(N10-O10) -> 0 | Q10: 0 | R10: 0 | S10: 0 | T10: 0 | U10: 0 | V10: 0 | W10: 0 | X10: 0 | Y10: 0 | Z10: =SUM(Q10:Y10) -> 0 | AA10: 0 | AB10: =SUM(Z10-AA10) -> 0 | AC10: =SUM(P10+AB10) -> 0
A11: 2013 | B11: Advocacy Group Inc. | C11: Coaliton for Bigger Trucks | D11: TA | E11: 436 | F11: 0 | G11: 0 | H11: 0 | I11: 0 | J11: 0 | K11: 0 | L11: 200 | M11: 0 | N11: =SUM(E11:M11) -> 636 | O11: 636 | P11: =SUM(N11-O11) -> 0 | Z11: =SUM(Q11:Y11) -> 0 | AB11: =SUM(Z11-AA11) -> 0 | AC11: =SUM(P11+AB11) -> 0
A12: 2012/2013 | B12: Ainsworth, Richard | C12: United Farm Family Mut Insurance | E12: 0 | F12: 0 | G12: 0 | H12: 0 | I12: 0 | J12: 0 | K12: 0 | L12: 0 | M12: 0 | N12: =SUM(E12:M12) -> 0 | O12: 0 | P12: =SUM(N12-O12) -> 0 | Q12: 0 | R12: 0 | S12: 0 | T12: 0 | U12: 0 | V12: 0 | W12: 0 | X12: 0 | Y12: 0 | Z12: 0 | AA12: 0 | AB12: 0 | AC12: 0
A13: 2012/2013 | B13: Alldredge, Neil | C13: Natl Assn of Mut Insurance Co. | E13: 0 | F13: 0 | G13: 0 | H13: 0 | I13: 0 | J13: 0 | K13: 0 | L13: 0 | M13: 0 | N13: 0 | O13: 0 | P13: 0 | Q13: 0 | R13: 0 | S13: 0 | T13: 0 | U13: 0 | V13: 0 | W13: 0 | X13: 0 | Y13: 0 | Z13: 0 | AA13: 0 | AB13: 0 | AC13: 0
A14: 2012/2013 | B14: Allegue, Raul | C14: The Travelers Companies & Subsidiaries | E14: 0 | F14: 0 | G14: 0 | H14: 0 | I14: 0 | J14: 0 | K14: 0 | L14: 100 | M14: 0 | N14: =SUM(E14:M14) -> 100 | O14: 100 | P14: =SUM(N14-O14) -> 0 | Q14: 0 | R14: 0 | S14: 0 | T14: 0 | U14: 0 | V14: 0 | W14: 0 | X14: 200 | Y14: 0 | Z14: 200 | AA14: 200 | AB14: 0 | AC14: 0
A15: 2012/2013 | B15: Allison, Kara Ann | C15: Hull & Associates, Inc. | E15: 0 | F15: 0 | G15: 0 | H15: 0 | I15: 0 | J15: 0 | K15: 0 | L15: 0 | M15: 0 | N15: 0 | O15: 0 | P15: 0 | Q15: 0 | R15: 0 | S15: 0 | T15: 0 | U15: 0 | V15: 0 | W15: 0 | X15: 0 | Y15: 0 | Z15: 0 | AA15: 0 | AB15: 0 | AC15: 0
A16: 2012/2013 | B16: Altria Client Svcs Inc. | C16: Philip Morris USA, by its service Altria | E16: 65904.77 | F16: 0 | G16: 0 | H16: 0 | I16: 0 | J16: 0 | K16: 0 | L16: 463.58 | M16: 28018.23 | N16: 94386.58 | O16: 94386.58 | P16: 0 | Q16: 61439.65 | R16: 0 | S16: 0 | T16: 0 | U16: 0 | V16: 0 | W16: 0 | X16: 13.1 | Y16: 2353.33 | Z16: 63806.08 | AA16: 63806.08 | AB16: 0 | AC16: 0
C17: John Middleton Co by its affilit svc Altria | E17: 1716.66 | F17: 0 | G17: 0 | H17: 0 | I17: 0 | J17: 0 | K17: 0 | L17: 12.08 | M17: 729.81 | N17: 2458.55 | O17: 2458.55 | P17: 0 | Q17: 2005.53 | R17: 0 | S17: 0 | T17: 0 | U17: 0 | V17: 0 | W17: 0 | X17: 0.43 | Y17: 76.82 | Z17: 2082.78 | AA17: 2082.78 | AB17: 0 | AC17: 0
C18: US Smokeless Tobacco Co by its svc Altria | E18: 7015.91 | F18: 0 | G18: 0 | H18: 0 | I18: 0 | J18: 0 | K18: 0 | L18: 49.35 | M18: 2982.69 | N18: 10047.95 | O18: 10047.95 | P18: 0 | Q18: 6924.36 | R18: 0 | S18: 0 | T18: 0 | U18: 0 | V18: 0 | W18: 0 | X18: 1.48 | Y18: 265.22 | Z18: 7191.06 | AA18: 7191.06 | AB18: -9.094947018e-13 | AC18: -9.094947018e-13
C19: Altria Client Svcs | E19: 0 | F19: 0 | G19: 0 | H19: 0 | I19: 0 | J19: 0 | K19: 0 | L19: 0 | M19: 0 | N19: =SUM(E19:M19) -> 0 | O19: 0 | P19: =SUM(N19-O19) -> 0 | Q19: 0 | R19: 0 | S19: 0 | T19: 0 | U19: 0 | V19: 0 | W19: 0 | X19: 0 | Y19: 0 | Z19: 0 | AA19: 0 | AB19: 0 | AC19: 0
A20: 2012/2013 | B20: APPIAN | C20: Boone Co Board of Commissioners | E20: 2100 | F20: 0 | G20: 0 | H20: 0 | I20: 0 | J20: 0 | K20: 0 | L20: 0 | M20: 0 | N20: 2100 | O20: 2100 | P20: 0 | Q20: 900 | R20: 0 | S20: 0 | T20: 0 | U20: 0 | V20: 0 | W20: 0 | X20: 0 | Y20: 0 | Z20: 900 | AA20: 900 | AB20: 0 | AC20: 0
C21: Build IN Council | E21: 36225 | F21: 0 | G21: 0 | H21: 0 | I21: 0 | J21: 0 | K21: 0 | L21: 0 | M21: 0 | N21: =SUM(E21:M21) -> 36225 | O21: 36225 | P21: =SUM(N21-O21) -> 0 | Q21: 15525 | R21: 0 | S21: 0 | T21: 74.56 | U21: 0 | V21: 0 | W21: 0 | X21: 0 | Y21: 215.85 | Z21: =SUM(Q21:Y21) -> 15815.41 | AA21: 15815.41 | AB21: =SUM(Z21-AA21) -> 0 | AC21: =SUM(P21+AB21) -> 0
C22: Harrison Co Govmtn | D22: TA | E22: 2100 | F22: 0 | G22: 0 | H22: 0 | I22: 0 | J22: 0 | K22: 0 | L22: 0 | M22: 0 | N22: 2100 | O22: 2100 | P22: 0 | Z22: 0 | AB22: 0 | AC22: 0
C23: Hendricks Co. Board of Commissioners | E23: 2100 | F23: 0 | G23: 0 | H23: 0 | I23: 0 | J23: 0 | K23: 0 | L23: 0 | M23: 0 | N23: 2100 | O23: 2100 | P23: 0 | Q23: 900 | R23: 0 | S23: 0 | T23: 0 | U23: 0 | V23: 0 | W23: 0 | X23: 0 | Y23: 0 | Z23: 900 | AA23: 900 | AB23: 0 | AC23: 0
C24: IN Construction Assn | E24: 5775 | F24: 0 | G24: 0 | H24: 0 | I24: 0 | J24: 0 | K24: 0 | L24: 0 | M24: 0 | N24: 5775 | O24: 5775 | P24: 0 | Q24: 2475 | R24: 0 | S24: 0 | T24: 0 | U24: 0 | V24: 0 | W24: 0 | X24: 0 | Y24: 0 | Z24: 2475 | AA24: 2475 | AB24: 0 | AC24: 0
C25: US 31 Coalition Inc. | E25: 2100 | F25: 0 | G25: 0 | H25: 0 | I25: 0 | J25: 0 | K25: 0 | L25: 0 | M25: 0 | N25: 2100 | O25: 2100 | P25: 0 | Q25: 900 | R25: 0 | S25: 0 | T25: 49 | U25: 0 | V25: 0 | W25: 0 | X25: 0 | Y25: 0 | Z25: 949 | AA25: 949 | AB25: 0 | AC25: 0
C26: White Co Board of Commissioners | E26: 2100 | F26: 0 | G26: 0 | H26: 0 | I26: 0 | J26: 0 | K26: 0 | L26: 0 | M26: 0 | N26: 2100 | O26: 2100 | P26: 0 | Q26: 900 | R26: 0 | S26: 0 | T26: 0 | U26: 0 | V26: 0 | W26: 0 | X26: 0 | Y26: 0 | Z26: 900 | AA26: 900 | AB26: 0 | AC26: 0
A27: 2012/2013 | B27: Arland, Karen L. | C27: See clients of Ice Miller | E27: 0 | F27: 0 | G27: 0 | H27: 0 | I27: 0 | J27: 0 | K27: 0 | L27: 0 | M27: 0 | N27: 0 | O27: 0 | P27: 0 | Q27: 0 | R27: 0 | S27: 0 | T27: 0 | U27: 0 | V27: 0 | W27: 0 | X27: 0 | Y27: 0 | Z27: 0 | AA27: 0 | AB27: 0 | AC27: 0
A28: 2013 | B28: Armstrong, LeTonia | C28: Abbvie | E28: 0 | F28: 0 | G28: 0 | H28: 0 | I28: 0 | J28: 0 | K28: 0 | L28: 100 | M28: 0 | N28: =SUM(E28:M28) -> 100 | O28: 0 | P28: =SUM(N28-O28) -> 100 | Q28: 0 | R28: 0 | S28: 0 | T28: 0 | U28: 0 | V28: 0 | W28: 0 | X28: 200 | Y28: 0 | Z28: =SUM(Q28:Y28) -> 200 | AA28: 0 | AB28: =SUM(Z28-AA28) -> 200 | AC28: =SUM(P28+AB28) -> 300
A29: 2012/2013 | B29: Ashton, Brett | C29: Krieg DeVault, LLP | E29: 0 | F29: 0 | G29: 0 | H29: 560.44 | I29: 0 | J29: 0 | K29: 385.75 | L29: 0 | M29: 0 | N29: 946.19 | O29: 946.19 | P29: 0 | Q29: 0 | R29: 0 | S29: 0 | T29: 108.64 | U29: 0 | V29: 0 | W29: 0 | X29: 0 | Y29: 0 | Z29: 108.64 | AA29: 108.64 | AB29: 0 | AC29: 0
A30: 2012/2013 | B30: Auberry, Brent | C30: Faegre Baker Daniels LLP | D30: TO | E30: 0 | F30: 0 | G30: 0 | H30: 0 | I30: 0 | J30: 0 | K30: 0 | L30: 0 | M30: 0 | N30: 0 | O30: 0 | P30: 0 | Q30: 0 | R30: 0 | S30: 0 | T30: 0 | U30: 0 | V30: 0 | W30: 0 | X30: 0 | Y30: 0 | Z30: 0 | AA30: 0 | AB30: 0 | AC30: 0
A31: 2012/2013 | B31: Augustus, Eric | C31: IN Assn of Realtors | E31: 0 | F31: 0 | G31: 0 | H31: 0 | I31: 0 | J31: 0 | K31: 0 | L31: 0 | M31: 0 | N31: =SUM(E31:M31) -> 0 | O31: 0 | P31: =SUM(N31-O31) -> 0 | Q31: 0 | R31: 0 | S31: 0 | T31: 0 | U31: 0 | V31: 0 | W31: 0 | X31: 0 | Y31: 0 | Z31: =SUM(Q31:Y31) -> 0 | AA31: 0 | AB31: =SUM(Z31-AA31) -> 0 | AC31: =SUM(P31+AB31) -> 0
A32: 2012/2013 | B32: Auslander, Caryl | C32: Clients of The Corydon Group | E32: 0 | F32: 0 | G32: 0 | H32: 1452 | I32: 0 | J32: 0 | K32: 240.7 | L32: 0 | M32: 0 | N32: 1692.7 | O32: 1692.7 | P32: 0 | Q32: 0 | R32: 0 | S32: 0 | T32: 195.13 | U32: 0 | V32: 0 | W32: 0 | X32: 0 | Y32: 0 | Z32: 195.13 | AA32: 195.13 | AB32: 0 | AC32: 0
A33: 2013 | B33: Ayotte, Michael | C33: CVS Caremark | D33: TO | E33: 0 | F33: 0 | G33: 0 | H33: 0 | I33: 0 | J33: 0 | K33: 0 | L33: 0 | M33: 0 | N33: =SUM(E33:M33) -> 0 | O33: 0 | P33: =SUM(N33-O33) -> 0 | Q33: 0 | R33: 0 | S33: 0 | T33: 0 | U33: 0 | V33: 0 | W33: 0 | X33: 0 | Y33: 0 | Z33: 0 | AA33: 0 | AB33: 0 | AC33: 0
A34: 2012/2013 | B34: Bailey, Todd | C34: Huntington Bancshares Inc | E34: 0 | F34: 0 | G34: 0 | H34: 0 | I34: 0 | J34: 0 | K34: 0 | L34: 0 | M34: 0 | N34: 0 | O34: 0 | P34: 0 | Q34: 0 | R34: 0 | S34: 0 | T34: 0 | U34: 0 | V34: 0 | W34: 0 | X34: 0 | Y34: 0 | Z34: 0 | AA34: 0 | AB34: 0 | AC34: 0
A35: 2012/2013 | B35: Bainter, Jeffrey J. | C35: Brtherhd Maintnce Way Empl Division, IBT | E35: 0 | F35: 0 | G35: 0 | H35: 0 | I35: 0 | J35: 0 | K35: 0 | L35: 0 | M35: 0 | N35: 0 | O35: 0 | P35: 0 | Q35: 0 | R35: 0 | S35: 0 | T35: 0 | U35: 0 | V35: 0 | W35: 0 | X35: 0 | Y35: 0 | Z35: 0 | AA35: 0 | AB35: 0 | AC35: 0
A36: 2012/2013 | B36: Baker, A. John | C36: Caesars Entertainment Operating Company | E36: 0 | F36: 0 | G36: 0 | H36: 2106.97 | I36: 0 | J36: 0 | K36: 0 | L36: 0 | M36: 0 | N36: =SUM(E36:M36) -> 2106.97 | O36: 2106.97 | P36: =SUM(N36-O36) -> 0 | Q36: 0 | R36: 0 | S36: 0 | T36: 246.92 | U36: 0 | V36: 0 | W36: 0 | X36: 0 | Y36: 0 | Z36: 246.92 | AA36: 246.92 | AB36: 0 | AC36: 0
A37: 2012/2013 | B37: Baker, John J | C37: Repub. Natl Distrib. Co of IN/ NWS | E37: 0 | F37: 0 | G37: 0 | H37: 0 | I37: 0 | J37: 0 | K37: 0 | L37: 0 | M37: 0 | N37: =SUM(E37:M37) -> 0 | O37: 0 | P37: =SUM(N37-O37) -> 0 | Q37: 0 | R37: 0 | S37: 0 | T37: 0 | U37: 0 | V37: 0 | W37: 0 | X37: 0 | Y37: 0 | Z37: =SUM(Q37:Y37) -> 0 | AA37: 0 | AB37: =SUM(Z37-AA37) -> 0 | AC37: =SUM(P37+AB37) -> 0
A38: 2013 | B38: Barada, William | C38: Barada Associates Inc. | D38: TO | E38: 0 | F38: 0 | G38: 0 | H38: 0 | I38: 0 | J38: 0 | K38: 0 | L38: 0 | M38: 0 | N38: =SUM(E38:M38) -> 0 | O38: 0 | P38: =SUM(N38-O38) -> 0 | Q38: 0 | R38: 0 | S38: 0 | T38: 0 | U38: 0 | V38: 0 | W38: 0 | X38: 0 | Y38: 0 | Z38: 0 | AA38: 0 | AB38: 0 | AC38: 0
A39: 2012/2013 | B39: Barker, Nicole | C39: Save the Dunes Conservation Fund | E39: 0 | F39: 0 | G39: 0 | H39: 0 | I39: 0 | J39: 0 | K39: 0 | L39: 0 | M39: 0 | N39: =SUM(E39:M39) -> 0 | O39: 0 | P39: =SUM(N39-O39) -> 0 | Q39: 0 | R39: 0 | S39: 0 | T39: 0 | U39: 0 | V39: 0 | W39: 0 | X39: 0 | Y39: 0 | Z39: =SUM(Q39:Y39) -> 0 | AA39: 0 | AB39: =SUM(Z39-AA39) -> 0 | AC39: =SUM(P39+AB39) -> 0
A40: 2012/2013 | B40: Barkley, Robbie T. | C40: Third House LLC | E40: 0 | F40: 0 | G40: 0 | H40: 0 | I40: 0 | J40: 0 | K40: 0 | L40: 0 | M40: 0 | N40: =SUM(E40:M40) -> 0 | O40: 0 | P40: =SUM(N40-O40) -> 0 | Q40: 0 | R40: 0 | S40: 0 | T40: 0 | U40: 0 | V40: 0 | W40: 0 | X40: 0 | Y40: 0 | Z40: =SUM(Q40:Y40) -> 0 | AA40: 0 | AB40: =SUM(Z40-AA40) -> 0 | AC40: =SUM(P40+AB40) -> 0
A41: 2012/2013 | B41: Barnes & Thornburg, LLP | C41: non client expenses | E41: 0 | F41: 0 | G41: 0 | H41: 0 | I41: 0 | J41: 4.38 | K41: 0 | L41: 1059 | M41: 0 | N41: 1063.38 | O41: 1063.38 | P41: 0 | Q41: 0 | R41: 0 | S41: 0 | T41: 0 | U41: 0 | V41: 0 | W41: 0 | X41: 77 | Y41: 0 | Z41: 77 | AA41: 77 | AB41: 0 | AC41: 0
C42: AALCO Distributing | E42: 26662.62 | F42: 0 | G42: 0 | H42: 0 | I42: 0 | J42: 20.44 | K42: 0 | L42: 107 | M42: 0 | N42: =SUM(E42:M42) -> 26790.06 | O42: 26790.06 | P42: =SUM(N42-O42) -> -3.637978807e-12 | Q42: 6295.71 | R42: 0 | S42: 0 | T42: 0.34 | U42: 0 | V42: 2.12 | W42: 0 | X42: 1 | Y42: 0 | Z42: =SUM(Q42:Y42) -> 6299.17 | AA42: 6299.17 | AB42: =SUM(Z42-AA42) -> 0 | AC42: =SUM(P42+AB42) -> -3.637978807e-12
C43: ADESA, Inc. | D43: TA | E43: 3556.69 | F43: 89.6 | G43: 0 | H43: 0 | I43: 0 | J43: 15.42 | K43: 0 | L43: 107 | M43: 0 | N43: 3768.71 | O43: 3768.71 | P43: 0 | Z43: =SUM(Q43:Y43) -> 0 | AB43: =SUM(Z43-AA43) -> 0 | AC43: =SUM(P43+AB43) -> 0
C44: AW Holdings LLC | E44: 20508.09 | F44: 58.4 | G44: 0 | H44: 0 | I44: 0 | J44: 26.21 | K44: 0 | L44: 107 | M44: 0 | N44: 20699.7 | O44: 20699.7 | P44: 0 | Q44: 18411.2 | R44: 11.27 | S44: 0 | T44: 0.34 | U44: 0 | V44: 2.12 | W44: 0 | X44: 1 | Y44: 0 | Z44: =SUM(Q44:Y44) -> 18425.93 | AA44: 18425.93 | AB44: =SUM(Z44-AA44) -> 0 | AC44: =SUM(P44+AB44) -> 0
C45: American Academy Anethes. Asst. | E45: 11912.15 | F45: 104.38 | G45: 0 | H45: 0 | I45: 0 | J45: 15.42 | K45: 0 | L45: 105 | M45: 0 | N45: 12136.95 | O45: 12136.95 | P45: -1.818989404e-12 | Q45: 3343.57 | R45: 14.67 | S45: 0 | T45: 0.34 | U45: 0 | V45: 2.12 | W45: 0 | X45: 1 | Y45: 0 | Z45: =SUM(Q45:Y45) -> 3361.7 | AA45: 3361.7 | AB45: =SUM(Z45-AA45) -> 4.547473509e-13 | AC45: =SUM(P45+AB45) -> -1.364242053e-12
C46: Assn of IN Prosecuting Attorneys, Inc. | E46: 32303.95 | F46: 22.93 | G46: 0 | H46: 0 | I46: 0 | J46: 20.44 | K46: 0 | L46: 1 | M46: 0 | N46: 32348.32 | O46: 32348.32 | P46: 0 | Q46: 33583.14 | R46: 15.03 | S46: 0 | T46: 0.34 | U46: 0 | V46: 2.12 | W46: 0 | X46: 0 | Y46: 0 | Z46: =SUM(Q46:Y46) -> 33600.63 | AA46: 33600.63 | AB46: =SUM(Z46-AA46) -> 0 | AC46: =SUM(P46+AB46) -> 0
C47: BC Initiative, Inc. | E47: 17016.8 | F47: 44.26 | G47: 0 | H47: 0 | I47: 0 | J47: 26.21 | K47: 0 | L47: 107 | M47: 0 | N47: 17194.27 | O47: 17194.27 | P47: -3.637978807e-12 | Q47: 18840.6 | R47: 0 | S47: 0 | T47: 0.34 | U47: 0 | V47: 2.12 | W47: 0 | X47: 1 | Y47: 0 | Z47: =SUM(Q47:Y47) -> 18844.06 | AA47: 18844.06 | AB47: =SUM(Z47-AA47) -> -3.637978807e-12 | AC47: =SUM(P47+AB47) -> -7.275957614e-12
C48: Best Buddies International | D48: TA | E48: 1040.45 | F48: 0 | G48: 0 | H48: 0 | I48: 0 | J48: 0 | K48: 0 | L48: 0 | M48: 0 | N48: =SUM(E48:M48) -> 1040.45 | O48: 1040.45 | P48: =SUM(N48-O48) -> 0 | Z48: =SUM(Q48:Y48) -> 0 | AB48: =SUM(Z48-AA48) -> 0 | AC48: =SUM(P48+AB48) -> 0
C49: Bd Commissioner Dearborn Co | E49: 15429.08 | F49: 159.72 | G49: 0 | H49: 0 | I49: 0 | J49: 20.44 | K49: 0 | L49: 105 | M49: 0 | N49: =SUM(E49:M49) -> 15714.24 | O49: 15714.24 | P49: =SUM(N49-O49) -> 0 | Q49: 3493.15 | R49: 0 | S49: 0 | T49: 0.34 | U49: 0 | V49: 2.12 | W49: 0 | X49: 1 | Y49: 0 | Z49: =SUM(Q49:Y49) -> 3496.61 | AA49: 3496.61 | AB49: =SUM(Z49-AA49) -> 0 | AC49: =SUM(P49+AB49) -> 0
C50: Bd Commissioner Jackson Co | D50: TO | E50: 21808.27 | F50: 25 | G50: 0 | H50: 0 | I50: 0 | J50: 20.44 | K50: 0 | L50: 205 | M50: 0 | N50: =SUM(E50:M50) -> 22058.71 | O50: 22058.71 | P50: =SUM(N50-O50) -> 0 | Q50: 11058.47 | R50: 0 | S50: 0 | T50: 0.34 | U50: 0 | V50: 2.12 | W50: 0 | X50: 1 | Y50: 0 | Z50: =SUM(Q50:Y50) -> 11061.93 | AA50: 11061.93 | AB50: =SUM(Z50-AA50) -> 0 | AC50: =SUM(P50+AB50) -> 0
C51: Bd Commissioner Shelby Co | D51: TO | E51: 14720.03 | F51: 0 | G51: 0 | H51: 0 | I51: 0 | J51: 20.44 | K51: 0 | L51: 210 | M51: 0 | N51: =SUM(E51:M51) -> 14950.47 | O51: 14950.47 | P51: =SUM(N51-O51) -> 1.818989404e-12 | Q51: 610.49 | R51: 0 | S51: 0 | T51: 0.34 | U51: 0 | V51: 2.12 | W51: 0 | X51: 1 | Y51: 0 | Z51: 613.95 | AA51: 613.95 | AB51: 0 | AC51: 1.818989404e-12
C52: Charter Schools USA | E52: 14195.18 | F52: 44.26 | G52: 0 | H52: 0 | I52: 0 | J52: 26.21 | K52: 0 | L52: 105 | M52: 0 | N52: =SUM(E52:M52) -> 14370.65 | O52: 14370.65 | P52: =SUM(N52-O52) -> 0 | Q52: 17145.72 | R52: 11.27 | S52: 0 | T52: 0.34 | U52: 0 | V52: 2.12 | W52: 0 | X52: 0 | Y52: 0 | Z52: =SUM(Q52:Y52) -> 17159.45 | AA52: 17159.45 | AB52: =SUM(Z52-AA52) -> 0 | AC52: =SUM(P52+AB52) -> 0
C53: City of Anderson | E53: 3319.24 | F53: 44.26 | G53: 0 | H53: 0 | I53: 0 | J53: 26.21 | K53: 0 | L53: 105 | M53: 0 | N53: 3494.71 | O53: 3494.71 | P53: 0 | Q53: 2786.15 | R53: 0 | S53: 0 | T53: 0.34 | U53: 0 | V53: 2.12 | W53: 0 | X53: 1 | Y53: 0 | Z53: 2789.61 | AA53: 2789.61 | AB53: 0 | AC53: 0
C54: City of Evansville | D54: TO | E54: 9912.66 | F54: 85.25 | G54: 0 | H54: 0 | I54: 0 | J54: 20.44 | K54: 0 | L54: 107 | M54: 0 | N54: =SUM(E54:M54) -> 10125.35 | O54: 10125.35 | P54: =SUM(N54-O54) -> 0 | Q54: 281.32 | R54: 0 | S54: 0.34 | T54: 0 | U54: 0 | V54: 2.12 | W54: 0 | X54: 1 | Y54: 0 | Z54: =SUM(Q54:Y54) -> 284.78 | AA54: 284.78 | AB54: =SUM(Z54-AA54) -> 0 | AC54: =SUM(P54+AB54) -> 0
C55: City of Indianapolis | E55: 42108.93 | F55: 122.6 | G55: 0 | H55: 0 | I55: 0 | J55: 26.21 | K55: 0 | L55: 107 | M55: 0 | N55: =SUM(E55:M55) -> 42364.74 | O55: 42364.74 | P55: =SUM(N55-O55) -> 0 | Q55: 30581.47 | R55: 16.69 | S55: 0 | T55: 0.34 | U55: 0 | V55: 2.12 | W55: 0 | X55: 1 | Y55: 0 | Z55: =SUM(Q55:Y55) -> 30601.62 | AA55: 30601.62 | AB55: =SUM(Z55-AA55) -> 0 | AC55: =SUM(P55+AB55) -> 0
C56: City of Marion | E56: 4176.13 | F56: 0 | G56: 0 | H56: 0 | I56: 0 | J56: 0 | K56: 0 | L56: 211 | M56: 0 | N56: =SUM(E56:M56) -> 4387.13 | O56: 4387.13 | P56: =SUM(N56-O56) -> 0 | Q56: 7032.54 | R56: 0 | S56: 0 | T56: 0 | U56: 0 | V56: 0 | W56: 0 | X56: 2 | Y56: 0 | Z56: =SUM(Q56:Y56) -> 7034.54 | AA56: 7034.54 | AB56: =SUM(Z56-AA56) -> 0 | AC56: =SUM(P56+AB56) -> 0
C57: City of Portage | D57: TO | E57: 22836.28 | F57: 231.6 | G57: 0 | H57: 0 | I57: 0 | J57: 20.44 | K57: 0 | L57: 106 | M57: 0 | N57: =SUM(E57:M57) -> 23194.32 | O57: 23194.32 | P57: =SUM(N57-O57) -> -3.637978807e-12 | Q57: 1761.29 | R57: 0 | S57: 0 | T57: 0 | U57: 0 | V57: 2.12 | W57: 0 | X57: 0 | Y57: 0 | Z57: =SUM(Q57:Y57) -> 1763.41 | AA57: 1763.41 | AB57: =SUM(Z57-AA57) -> -2.273736754e-13 | AC57: =SUM(P57+AB57) -> -3.865352483e-12
C58: City of Shelbyville | D58: TO | E58: 15391.25 | F58: 52.62 | G58: 0 | H58: 0 | I58: 0 | J58: 20.44 | K58: 0 | L58: 210 | M58: 0 | N58: =SUM(E58:M58) -> 15674.31 | O58: 15674.31 | P58: =SUM(N58-O58) -> 1.818989404e-12 | Q58: 455.42 | R58: 0 | S58: 0 | T58: 0.34 | U58: 0 | V58: 2.12 | W58: 0 | X58: 1 | Y58: 0 | Z58: =SUM(Q58:Y58) -> 458.88 | AA58: 458.88 | AB58: =SUM(Z58-AA58) -> 0 | AC58: =SUM(P58+AB58) -> 1.818989404e-12
C59: Coalition for Homelessness Intervention and Prev | E59: 3396.07 | F59: 0 | G59: 0 | H59: 0 | I59: 0 | J59: 0 | K59: 0 | L59: 0 | M59: 0 | N59: =SUM(E59:M59) -> 3396.07 | O59: 3396.07 | P59: =SUM(N59-O59) -> 0 | Q59: 0 | R59: 0 | S59: 0 | T59: 0 | U59: 0 | V59: 0 | W59: 0 | X59: 1 | Y59: 0 | Z59: =SUM(Q59:Y59) -> 1 | AA59: 1 | AB59: =SUM(Z59-AA59) -> 0 | AC59: =SUM(P59+AB59) -> 0
C60: Concerned Creditors Bar IN | E60: 18572.47 | F60: 11.58 | G60: 0 | H60: 0 | I60: 0 | J60: 20.44 | K60: 0 | L60: 55 | M60: 0 | N60: =SUM(E60:M60) -> 18659.49 | O60: 18659.49 | P60: =SUM(N60-O60) -> 0 | Q60: 13549.36 | R60: 0 | S60: 0 | T60: 0.34 | U60: 0 | V60: 2.12 | W60: 0 | X60: 1 | Y60: 0 | Z60: =SUM(Q60:Y60) -> 13552.82 | AA60: 13552.82 | AB60: =SUM(Z60-AA60) -> 1.818989404e-12 | AC60: =SUM(P60+AB60) -> 1.818989404e-12
C61: CRC Health Grp | D61: TO | E61: 7357.81 | F61: 58.39 | G61: 0 | H61: 0 | I61: 0 | J61: 26.21 | K61: 0 | L61: 105 | M61: 0 | N61: =SUM(E61:M61) -> 7547.41 | O61: 7547.41 | P61: =SUM(N61-O61) -> 9.094947018e-13 | Q61: 3127.54 | R61: 0 | S61: 0 | T61: 0 | U61: 0 | V61: 0 | W61: 0 | X61: 1 | Y61: 0 | Z61: 3128.54 | AA61: 3128.54 | AB61: 0 | AC61: 9.094947018e-13
C62: DECA Financial Svcs | D62: TA | E62: 7787.75 | F62: 86.32 | G62: 0 | H62: 0 | I62: 0 | J62: 20.44 | K62: 0 | L62: 210 | M62: 0 | N62: 8104.51 | O62: 8104.51 | P62: -9.094947018e-13 | Z62: 0 | AB62: 0 | AC62: -9.094947018e-13
C63: Dicke, Kevin R. | D63: TO | E63: 19034.85 | F63: 0 | G63: 0 | H63: 0 | I63: 0 | J63: 20.44 | K63: 0 | L63: 105 | M63: 0 | N63: =SUM(E63:M63) -> 19160.29 | O63: 19160.29 | P63: =SUM(N63-O63) -> -3.637978807e-12 | Q63: 2581.66 | R63: 0 | S63: 0 | T63: 0 | U63: 0 | V63: 0 | W63: 0 | X63: 4 | Y63: 0 | Z63: =SUM(Q63:Y63) -> 2585.66 | AA63: 2585.66 | AB63: =SUM(Z63-AA63) -> 0 | AC63: =SUM(P63+AB63) -> -3.637978807e-12
C64: Distilled Spirits of the US, Inc. | E64: 35228.5 | F64: 0 | G64: 0 | H64: 0 | I64: 0 | J64: 20.44 | K64: 0 | L64: 212 | M64: 0 | N64: 35460.94 | O64: 35460.94 | P64: 0 | Q64: 12992.52 | R64: 47.48 | S64: 0 | T64: 0.34 | U64: 0 | V64: 2.12 | W64: 0 | X64: 2 | Y64: 0 | Z64: 13044.46 | AA64: 13044.46 | AB64: 1.818989404e-12 | AC64: 1.818989404e-12
C65: Eli Lilly Corporation | E65: 47706.7 | F65: 0 | G65: 0 | H65: 0 | I65: 0 | J65: 9.65 | K65: 0 | L65: 0 | M65: 0 | N65: 47716.35 | O65: 47716.35 | P65: 0 | Q65: 30500.92 | R65: 26.89 | S65: 0 | T65: 0.34 | U65: 0 | V65: 2.12 | W65: 0 | X65: 0 | Y65: 0 | Z65: 30530.27 | AA65: 30530.27 | AB65: -3.637978807e-12 | AC65: -3.637978807e-12
C66: Family Express Corporation | E66: 33010.89 | F66: 3.92 | G66: 0 | H66: 0 | I66: 0 | J66: 20.44 | K66: 0 | L66: 105 | M66: 0 | N66: 33140.25 | O66: 33140.25 | P66: 0 | Q66: 31542.77 | R66: 15.93 | S66: 0 | T66: 0.34 | U66: 0 | V66: 2.12 | W66: 0 | X66: 1 | Y66: 0 | Z66: 31562.16 | AA66: 31562.16 | AB66: 0 | AC66: 0
C67: Fndntn for Educ. Choice/ dba Friedman Fdntn | E67: 10548.46 | F67: 56.65 | G67: 0 | H67: 0 | I67: 0 | J67: 26.24 | K67: 0 | L67: 3 | M67: 0 | N67: 10634.35 | O67: 10634.35 | P67: -1.818989404e-12 | Q67: 1747.22 | R67: 0 | S67: 0 | T67: 0.34 | U67: 0 | V67: 2.12 | W67: 0 | X67: 1 | Y67: 0 | Z67: 1750.68 | AA67: 1750.68 | AB67: -2.273736754e-13 | AC67: -2.046363079e-12
C68: Fndtns of E. Chicago | E68: 481.65 | F68: 31.73 | G68: 0 | H68: 0 | I68: 0 | J68: 12.98 | K68: 0 | L68: 57 | M68: 0 | N68: 583.36 | O68: 583.36 | P68: 0 | Q68: 138.62 | R68: 0 | S68: 0 | T68: 0 | U68: 0 | V68: 2.12 | W68: 0 | X68: 1 | Y68: 0 | Z68: 141.74 | AA68: 141.74 | AB68: 0 | AC68: 0
C69: GlaxoSmithKline | E69: 1603.23 | F69: 0 | G69: 0 | H69: 0 | I69: 0 | J69: 0 | K69: 0 | L69: 0 | M69: 0 | N69: =SUM(E69:M69) -> 1603.23 | O69: 1603.23 | P69: =SUM(N69-O69) -> 0 | Q69: 17884.18 | R69: 141.22 | S69: 0 | T69: 0.34 | U69: 0 | V69: 2.12 | W69: 0 | X69: 2 | Y69: 0 | Z69: =SUM(Q69:Y69) -> 18029.86 | AA69: 18029.86 | AB69: =SUM(Z69-AA69) -> 0 | AC69: =SUM(P69+AB69) -> 0
C70: Health and Hospital Corporation of Marion Co | E70: 47691.55 | F70: 195.72 | G70: 0 | H70: 0 | I70: 0 | J70: 26.21 | K70: 0 | L70: 107 | M70: 0 | N70: 48020.48 | O70: 48020.48 | P70: 0 | Q70: 35297.37 | R70: 16.69 | S70: 0 | T70: 0.34 | U70: 0 | V70: 2.12 | W70: 0 | X70: 1 | Y70: 0 | Z70: 35317.52 | AA70: 35317.52 | AB70: 7.275957614e-12 | AC70: 7.275957614e-12
C71: Hoosier Park | D71: TA | E71: 57593.59 | F71: 0 | G71: 0 | H71: 0 | I71: 0 | J71: 20.44 | K71: 0 | L71: 1 | M71: 0 | N71: =SUM(E71:M71) -> 57615.03 | O71: 57615.03 | P71: =SUM(N71-O71) -> 0 | Z71: =SUM(Q71:Y71) -> 0 | AB71: =SUM(Z71-AA71) -> 0 | AC71: =SUM(P71+AB71) -> 0
C72: Independent Colleges of IN | E72: 24991.05 | F72: 2286.35 | G72: 0 | H72: 0 | I72: 0 | J72: 26.21 | K72: 0 | L72: 162 | M72: 0 | N72: =SUM(E72:M72) -> 27465.61 | O72: 27465.61 | P72: =SUM(N72-O72) -> -3.637978807e-12 | Q72: 15073.46 | R72: 11.27 | S72: 0 | T72: 0.34 | U72: 0 | V72: 2.12 | W72: 0 | X72: 2 | Y72: 0 | Z72: =SUM(Q72:Y72) -> 15089.19 | AA72: 15089.19 | AB72: =SUM(Z72-AA72) -> 0 | AC72: =SUM(P72+AB72) -> -3.637978807e-12
C73: Indiana American Water Company | E73: 25857.38 | F73: 82.8 | G73: 0 | H73: 0 | I73: 0 | J73: 26.21 | K73: 0 | L73: 213 | M73: 0 | N73: 26179.39 | O73: 26179.39 | P73: 0 | Q73: 15443.53 | R73: 81.29 | S73: 0 | T73: 0.34 | U73: 0 | V73: 2.12 | W73: 0 | X73: 2 | Y73: 0 | Z73: 15529.28 | AA73: 15529.28 | AB73: 1.818989404e-12 | AC73: 1.818989404e-12
C74: IN Assn for the Education of Young Children | E74: 7701.77 | F74: 72.69 | G74: 0 | H74: 0 | I74: 0 | J74: 26.21 | K74: 0 | L74: 112 | M74: 0 | N74: =SUM(E74:M74) -> 7912.67 | O74: 7912.67 | P74: =SUM(N74-O74) -> 0 | Q74: 10666.06 | R74: 19.11 | S74: 0 | T74: 0.34 | U74: 0 | V74: 2.12 | W74: 0 | X74: 2 | Y74: 0 | Z74: =SUM(Q74:Y74) -> 10689.63 | AA74: 10689.63 | AB74: =SUM(Z74-AA74) -> 1.818989404e-12 | AC74: =SUM(P74+AB74) -> 1.818989404e-12
C75: IN Assn for Treatment Opiod Dep. | D75: TA | E75: 13684.7 | F75: 58.39 | G75: 0 | H75: 0 | I75: 0 | J75: 26.21 | K75: 0 | L75: 105 | M75: 0 | N75: =SUM(E75:M75) -> 13874.3 | O75: 13874.3 | P75: =SUM(N75-O75) -> 0 | Z75: =SUM(Q75:Y75) -> 0 | AB75: =SUM(Z75-AA75) -> 0 | AC75: =SUM(P75+AB75) -> 0
C76: Indiana Assn of County Commissioners | E76: 22021.31 | F76: 91.82 | G76: 0 | H76: 0 | I76: 0 | J76: 26.21 | K76: 0 | L76: 318 | M76: 0 | N76: 22457.34 | O76: 22457.34 | P76: 0 | Q76: 10451.57 | R76: 19.11 | S76: 0 | T76: 0.34 | U76: 0 | V76: 2.12 | W76: 0 | X76: 2 | Y76: 0 | Z76: 10475.14 | AA76: 10475.14 | AB76: 1.818989404e-12 | AC76: 1.818989404e-12
C77: Indiana Assn of Homes & Services for the Aging | E77: 22560.16 | F77: 58.4 | G77: 0 | H77: 0 | I77: 0 | J77: 20.44 | K77: 0 | L77: 213 | M77: 0 | N77: 22852 | O77: 22852 | P77: 0 | Q77: 16304.4 | R77: 0 | S77: 0 | T77: 0.34 | U77: 0 | V77: 2.12 | W77: 0 | X77: 2 | Y77: 0 | Z77: 16308.86 | AA77: 16308.86 | AB77: 0 | AC77: 0
C78: Indiana Bell Telephone d/b/a AT&T | E78: 20997.45 | F78: 70.79 | G78: 0 | H78: 0 | I78: 0 | J78: 26.21 | K78: 0 | L78: 1 | M78: 0 | N78: 21095.45 | O78: 21095.45 | P78: 0 | Q78: 26577.58 | R78: 11.27 | S78: 0 | T78: 0.34 | U78: 0 | V78: 2.12 | W78: 0 | X78: 0 | Y78: 0 | Z78: 26591.31 | AA78: 26591.31 | AB78: 0 | AC78: 0
C79: Indiana Board Depositories | E79: 32358.58 | F79: 18.95 | G79: 0 | H79: 0 | I79: 0 | J79: 20.44 | K79: 0 | L79: 111 | M79: 0 | N79: =SUM(E79:M79) -> 32508.97 | O79: 32508.97 | P79: =SUM(N79-O79) -> 0 | Q79: 3990.8 | R79: 0 | S79: 0 | T79: 0.34 | U79: 0 | V79: 2.12 | W79: 0 | X79: 1 | Y79: 0 | Z79: =SUM(Q79:Y79) -> 3994.26 | AA79: 3994.26 | AB79: =SUM(Z79-AA79) -> 0 | AC79: =SUM(P79+AB79) -> 0
C80: Indiana Bond Bank | E80: 34148.71 | F80: 0 | G80: 0 | H80: 0 | I80: 0 | J80: 0 | K80: 0 | L80: 0 | M80: 0 | N80: =SUM(E80:M80) -> 34148.71 | O80: 34148.71 | P80: =SUM(N80-O80) -> 0 | Q80: 498.46 | R80: 0 | S80: 0 | T80: 0 | U80: 0 | V80: 0 | W80: 0 | X80: 1 | Y80: 0 | Z80: =SUM(Q80:Y80) -> 499.46 | AA80: 499.46 | AB80: =SUM(Z80-AA80) -> 0 | AC80: =SUM(P80+AB80) -> 0
C81: IN Building Contractors Alliance | E81: 25386.52 | F81: 58.4 | G81: 0 | H81: 0 | I81: 0 | J81: 26.21 | K81: 0 | L81: 107 | M81: 0 | N81: =SUM(E81:M81) -> 25578.13 | O81: 25578.13 | P81: =SUM(N81-O81) -> 0 | Q81: 35260.12 | R81: 11.27 | S81: 0 | T81: 0.34 | U81: 0 | V81: 2.12 | W81: 0 | X81: 1 | Y81: 0 | Z81: =SUM(Q81:Y81) -> 35274.85 | AA81: 35274.85 | AB81: =SUM(Z81-AA81) -> 0 | AC81: =SUM(P81+AB81) -> 0
C82: IN Chptr Natl Acdmy Elder Law Attys | E82: 5544.24 | F82: 106.66 | G82: 0 | H82: 0 | I82: 0 | J82: 26.2 | K82: 0 | L82: 107 | M82: 0 | N82: =SUM(E82:M82) -> 5784.1 | O82: 5784.1 | P82: =SUM(N82-O82) -> -9.094947018e-13 | Q82: 13508.34 | R82: 19.11 | S82: 0 | T82: 0.34 | U82: 0 | V82: 2.12 | W82: 0 | X82: 1 | Y82: 0 | Z82: =SUM(Q82:Y82) -> 13530.91 | AA82: 13530.91 | AB82: =SUM(Z82-AA82) -> 1.818989404e-12 | AC82: =SUM(P82+AB82) -> 9.094947018e-13
C83: Indiana Coalition for Arts | E83: 2949.9 | F83: 31.73 | G83: 0 | H83: 0 | I83: 0 | J83: 18.75 | K83: 0 | L83: 58 | M83: 0 | N83: =SUM(E83:M83) -> 3058.38 | O83: 3058.38 | P83: =SUM(N83-O83) -> 0 | Q83: 300.47 | R83: 0 | S83: 0 | T83: 0.34 | U83: 0 | V83: 2.12 | W83: 0 | X83: 1 | Y83: 0 | Z83: =SUM(Q83:Y83) -> 303.93 | AA83: 303.93 | AB83: =SUM(Z83-AA83) -> 0 | AC83: =SUM(P83+AB83) -> 0
C84: Indiana County Recorders Assn | E84: 11638.81 | F84: 0 | G84: 0 | H84: 0 | I84: 0 | J84: 20.44 | K84: 0 | L84: 107 | M84: 0 | N84: =SUM(E84:M84) -> 11766.25 | O84: 11766.25 | P84: =SUM(N84-O84) -> 0 | Q84: 1172.51 | R84: 0 | S84: 0 | T84: 0.34 | U84: 0 | V84: 2.12 | W84: 0 | X84: 1 | Y84: 0 | Z84: =SUM(Q84:Y84) -> 1175.97 | AA84: 1175.97 | AB84: =SUM(Z84-AA84) -> -2.273736754e-13 | AC84: =SUM(P84+AB84) -> -2.273736754e-13
C85: Indiana County Treasurers Assn | E85: 12872.74 | F85: 0 | G85: 0 | H85: 0 | I85: 0 | J85: 20.44 | K85: 0 | L85: 107 | M85: 0 | N85: 13000.18 | O85: 13000.18 | P85: 0 | Q85: 1356.28 | R85: 0 | S85: 0 | T85: 0.34 | U85: 0 | V85: 2.12 | W85: 0 | X85: 1 | Y85: 0 | Z85: 1359.74 | AA85: 1359.74 | AB85: -2.273736754e-13 | AC85: -2.273736754e-13
C86: Indiana Education Savings Authority | E86: 23722.95 | F86: 0 | G86: 0 | H86: 0 | I86: 0 | J86: 20.44 | K86: 0 | L86: 106 | M86: 0 | N86: 23849.39 | O86: 23849.39 | P86: 0 | Q86: 10722.13 | R86: 0 | S86: 0 | T86: 0.34 | U86: 0 | V86: 2.12 | W86: 0 | X86: 1 | Y86: 0 | Z86: 10725.59 | AA86: 10725.59 | AB86: 0 | AC86: 0
C87: IN Forward dba Freedom IN | D87: p2 | N87: =SUM(E87:M87) -> 0 | O87: 0 | P87: =SUM(N87-O87) -> 0 | Q87: 13395.68 | R87: 9.63 | S87: 0 | T87: 0 | U87: 0 | V87: 0 | W87: 0 | X87: 0 | Y87: 0 | Z87: =SUM(Q87:Y87) -> 13405.31 | AA87: 13405.31 | AB87: =SUM(Z87-AA87) -> 0 | AC87: =SUM(P87+AB87) -> 0
C88: IN Grantmakers Alliance | E88: 10605.17 | F88: 72.69 | G88: 0 | H88: 0 | I88: 0 | J88: 26.21 | K88: 0 | L88: 168 | M88: 0 | N88: =SUM(E88:M88) -> 10872.07 | O88: 10872.07 | P88: =SUM(N88-O88) -> 0 | Q88: 4442.44 | R88: 14.67 | S88: 0 | T88: 0.34 | U88: 0 | V88: 2.12 | W88: 0 | X88: 3 | Y88: 0 | Z88: =SUM(Q88:Y88) -> 4462.57 | AA88: 4462.57 | AB88: =SUM(Z88-AA88) -> 0 | AC88: =SUM(P88+AB88) -> 0
C89: IN Health Information Exchange, Inc. | E89: 13719.2 | F89: 44.26 | G89: 0 | H89: 0 | I89: 0 | J89: 26.21 | K89: 0 | L89: 57 | M89: 0 | N89: =SUM(E89:M89) -> 13846.67 | O89: 13846.67 | P89: =SUM(N89-O89) -> 0 | Q89: 14124.24 | R89: 11.27 | S89: 0 | T89: 0.34 | U89: 0 | V89: 2.12 | W89: 0 | X89: 1 | Y89: 0 | Z89: =SUM(Q89:Y89) -> 14138.97 | AA89: 14138.97 | AB89: =SUM(Z89-AA89) -> 1.818989404e-12 | AC89: =SUM(P89+AB89) -> 1.818989404e-12
C90: IN Logo Sign Grp | D90: TA | E90: 23068.76 | F90: 26.56 | G90: 0 | H90: 0 | I90: 0 | J90: 20.44 | K90: 0 | L90: 106 | M90: 0 | N90: =SUM(E90:M90) -> 23221.76 | O90: 23221.76 | P90: =SUM(N90-O90) -> 0 | Z90: =SUM(Q90:Y90) -> 0 | AB90: =SUM(Z90-AA90) -> 0 | AC90: =SUM(P90+AB90) -> 0
C91: IN Secretary of State | D91: TO | E91: 14726.79 | F91: 44.26 | G91: 0 | H91: 0 | I91: 0 | J91: 26.21 | K91: 0 | L91: 107 | M91: 0 | N91: =SUM(E91:M91) -> 14904.26 | O91: 14904.26 | P91: =SUM(N91-O91) -> 0 | Q91: 238.81 | R91: 0 | S91: 0 | T91: 0.34 | U91: 0 | V91: 2.12 | W91: 0 | X91: 1 | Y91: 0 | Z91: =SUM(Q91:Y91) -> 242.27 | AA91: 242.27 | AB91: =SUM(Z91-AA91) -> 0 | AC91: =SUM(P91+AB91) -> 0
C92: IN Statewide 911 Board | E92: 21893.2 | F92: 0 | G92: 0 | H92: 0 | I92: 0 | J92: 20.44 | K92: 0 | L92: 107 | M92: 0 | N92: =SUM(E92:M92) -> 22020.64 | O92: 22020.64 | P92: =SUM(N92-O92) -> 0 | Q92: 7571.13 | R92: 0 | S92: 0 | T92: 0.34 | U92: 0 | V92: 2.12 | W92: 0 | X92: 1 | Y92: 0 | Z92: =SUM(Q92:Y92) -> 7574.59 | AA92: 7574.59 | AB92: =SUM(Z92-AA92) -> 0 | AC92: =SUM(P92+AB92) -> 0
C93: Indpls Public Transpo Corporation | E93: 30818.46 | F93: 44.26 | G93: 0 | H93: 0 | I93: 0 | J93: 26.21 | K93: 0 | L93: 107 | M93: 0 | N93: =SUM(E93:M93) -> 30995.93 | O93: 30995.93 | P93: =SUM(N93-O93) -> -3.637978807e-12 | Q93: 18237.87 | R93: 11.27 | S93: 0 | T93: 0.34 | U93: 0 | V93: 2.12 | W93: 0 | X93: 1 | Y93: 0 | Z93: =SUM(Q93:Y93) -> 18252.6 | AA93: 18252.6 | AB93: =SUM(Z93-AA93) -> 0 | AC93: =SUM(P93+AB93) -> -3.637978807e-12
C94: LBLHA | D94: TA | E94: 9044.56 | F94: 41.4 | G94: 0 | H94: 0 | I94: 0 | J94: 10.79 | K94: 0 | L94: 210 | M94: 0 | N94: =SUM(E94:M94) -> 9306.75 | O94: 9306.75 | P94: =SUM(N94-O94) -> 0 | Z94: =SUM(Q94:Y94) -> 0 | AB94: =SUM(Z94-AA94) -> 0 | AC94: =SUM(P94+AB94) -> 0
C95: Lake Co Solid Waste Mgmnt District | E95: 20239.5 | F95: 45 | G95: 0 | H95: 0 | I95: 0 | J95: 9.65 | K95: 0 | L95: 1 | M95: 0 | N95: =SUM(E95:M95) -> 20295.15 | O95: 20295.15 | P95: =SUM(N95-O95) -> 0 | Q95: 12475.64 | R95: 0 | S95: 0 | T95: 0.34 | U95: 0 | V95: 2.12 | W95: 0 | X95: 1 | Y95: 0 | Z95: =SUM(Q95:Y95) -> 12479.1 | AA95: 12479.1 | AB95: =SUM(Z95-AA95) -> 0 | AC95: =SUM(P95+AB95) -> 0
C96: Lockridge Grindal Nauen LLP | D96: TA | E96: 5635.85 | F96: 0 | G96: 0 | H96: 0 | I96: 0 | J96: 0 | K96: 0 | L96: 105 | M96: 0 | N96: =SUM(E96:M96) -> 5740.85 | O96: 5740.85 | P96: =SUM(N96-O96) -> 0 | Z96: =SUM(Q96:Y96) -> 0 | AB96: =SUM(Z96-AA96) -> 0 | AC96: =SUM(P96+AB96) -> 0
C97: The Majestic Star Casino | E97: 38839.37 | F97: 129.32 | G97: 0 | H97: 0 | I97: 0 | J97: 26.21 | K97: 0 | L97: 528 | M97: 0 | N97: =SUM(E97:M97) -> 39522.9 | O97: 39522.9 | P97: =SUM(N97-O97) -> 0 | Q97: 27353.08 | R97: 11.27 | S97: 0 | T97: 0.34 | U97: 0 | V97: 2.12 | W97: 0 | X97: 3 | Y97: 0 | Z97: =SUM(Q97:Y97) -> 27369.81 | AA97: 27369.81 | AB97: =SUM(Z97-AA97) -> 0 | AC97: =SUM(P97+AB97) -> 0
C98: Marion Superior Courts | E98: 13297.64 | F98: 92.37 | G98: 0 | H98: 0 | I98: 0 | J98: 26.21 | K98: 0 | L98: 0 | M98: 0 | N98: 13416.22 | O98: 13416.22 | P98: 0 | Q98: 2464.08 | R98: 5.42 | S98: 0 | T98: 0.34 | U98: 0 | V98: 2.12 | W98: 0 | X98: 1 | Y98: 0 | Z98: 2472.96 | AA98: 2472.96 | AB98: 0 | AC98: 0
C99: MDWise | E99: 24416.29 | F99: 156.29 | G99: 0 | H99: 0 | I99: 0 | J99: 20.44 | K99: 0 | L99: 0 | M99: 0 | N99: =SUM(E99:M99) -> 24593.02 | O99: 24593.02 | P99: =SUM(N99-O99) -> 0 | Q99: 21992.68 | R99: 15.71 | S99: 0 | T99: 0.34 | U99: 0 | V99: 2.12 | W99: 0 | X99: 0 | Y99: 0 | Z99: =SUM(Q99:Y99) -> 22010.85 | AA99: 22010.85 | AB99: =SUM(Z99-AA99) -> 0 | AC99: =SUM(P99+AB99) -> 0
C100: Microsoft | D100: TA | E100: 7309.66 | F100: 16.47 | G100: 0 | H100: 0 | I100: 0 | J100: 18.75 | K100: 0 | L100: 107 | M100: 0 | N100: 7451.88 | O100: 7451.88 | P100: 0 | Z100: 0 | AB100: 0 | AC100: 0
C101: New Centaur | D101: P2 | M101: 0 | N101: 0 | O101: 0 | P101: 0 | Q101: 52132.81 | R101: 0 | S101: 0 | T101: 0 | U101: 0 | V101: 2.12 | W101: 0 | X101: 0 | Y101: 0 | Z101: 52134.93 | AA101: 52134.93 | AB101: 0 | AC101: 0
C102: Pearson North America | D102: P2 | M102: 0 | N102: =SUM(E102:M102) -> 0 | O102: 0 | P102: =SUM(N102-O102) -> 0 | Q102: 1731.52 | R102: 0 | S102: 0 | T102: 0 | U102: 0 | V102: 0 | W102: 0 | X102: 0 | Y102: 0 | Z102: =SUM(Q102:Y102) -> 1731.52 | AA102: 1731.52 | AB102: =SUM(Z102-AA102) -> 0 | AC102: =SUM(P102+AB102) -> 0
C103: Reed Elsevier, Inc. | E103: 20416.98 | F103: 44.26 | G103: 0 | H103: 0 | I103: 0 | J103: 26.21 | K103: 0 | L103: 108 | M103: 0 | N103: 20595.45 | O103: 20595.45 | P103: -3.637978807e-12 | Q103: 21492.6 | R103: 11.27 | S103: 0 | T103: 0.34 | U103: 0 | V103: 2.12 | W103: 0 | X103: 1 | Y103: 0 | Z103: 21507.33 | AA103: 21507.33 | AB103: -3.637978807e-12 | AC103: -7.275957614e-12
C104: Rent-A-Center | E104: 24232.65 | F104: 56.65 | G104: 0 | H104: 0 | I104: 0 | J104: 26.21 | K104: 0 | L104: 105 | M104: 0 | N104: 24420.51 | O104: 24420.51 | P104: 3.637978807e-12 | Q104: 1206.2 | R104: 0 | S104: 0 | T104: 0.34 | U104: 0 | V104: 0 | W104: 0 | X104: 1 | Y104: 0 | Z104: 1207.54 | AA104: 1207.54 | AB104: 0 | AC104: 3.637978807e-12
C105: Res-Care, Inc. | E105: 24054.5 | F105: 47.92 | G105: 0 | H105: 0 | I105: 0 | J105: 26.22 | K105: 0 | L105: 213 | M105: 0 | N105: =SUM(E105:M105) -> 24341.64 | O105: 24341.64 | P105: =SUM(N105-O105) -> 0 | Q105: 17682.58 | R105: 11.27 | S105: 0 | T105: 0.34 | U105: 0 | V105: 328.49 | W105: 0 | X105: 2 | Y105: 0 | Z105: =SUM(Q105:Y105) -> 18024.68 | AA105: 18024.68 | AB105: =SUM(Z105-AA105) -> 3.637978807e-12 | AC105: =SUM(P105+AB105) -> 3.637978807e-12
C106: Retired IN Public Employees Assn | E106: 10026.13 | F106: 12.53 | G106: 0 | H106: 0 | I106: 0 | J106: 26.23 | K106: 0 | L106: 55 | M106: 0 | N106: 10119.89 | O106: 10119.89 | P106: 0 | Q106: 36287.6 | R106: 11.27 | S106: 0 | T106: 0.34 | U106: 0 | V106: 2.12 | W106: 0 | X106: 55 | Y106: 0 | Z106: =SUM(Q106:Y106) -> 36356.33 | AA106: 36356.33 | AB106: =SUM(Z106-AA106) -> -7.275957614e-12 | AC106: =SUM(P106+AB106) -> -7.275957614e-12
C107: Safe Hiring Solutions | E107: 9168.66 | F107: 25.44 | G107: 0 | H107: 0 | I107: 0 | J107: 20.45 | K107: 0 | L107: 105 | M107: 0 | N107: =SUM(E107:M107) -> 9319.55 | O107: 9319.55 | P107: =SUM(N107-O107) -> 1.818989404e-12 | Q107: 574.45 | R107: 0 | S107: 0 | T107: 0 | U107: 0 | V107: 2.12 | W107: 0 | X107: 0 | Y107: 0 | Z107: =SUM(Q107:Y107) -> 576.57 | AA107: 576.57 | AB107: =SUM(Z107-AA107) -> 0 | AC107: =SUM(P107+AB107) -> 1.818989404e-12
C108: Saint Gobain Containers | E108: 132921.34 | F108: 0 | G108: 0 | H108: 229.62 | I108: 0 | J108: 193.54 | K108: 0 | L108: 105 | M108: 0 | N108: 133449.5 | O108: 133449.5 | P108: 0 | Q108: 215478.31 | R108: 161.36 | S108: 0 | T108: 0 | U108: 0 | V108: 2.12 | W108: 0 | X108: 1 | Y108: 0 | Z108: =SUM(Q108:Y108) -> 215642.79 | AA108: 215642.79 | AB108: =SUM(Z108-AA108) -> -2.910383046e-11 | AC108: =SUM(P108+AB108) -> -2.910383046e-11
C109: Simon Property Group, LP | E109: 16998.18 | F109: 0 | G109: 0 | H109: 0 | I109: 0 | J109: 20.45 | K109: 0 | L109: 213 | M109: 0 | N109: 17231.63 | O109: 17231.63 | P109: 0 | Q109: 164.64 | R109: 0 | S109: 0 | T109: 0.34 | U109: 0 | V109: 2.12 | W109: 0 | X109: 2 | Y109: 0 | Z109: =SUM(Q109:Y109) -> 169.1 | AA109: 169.1 | AB109: =SUM(Z109-AA109) -> 0 | AC109: =SUM(P109+AB109) -> 0
C110: Stand For Children | E110: 25683.34 | F110: 44.26 | G110: 0 | H110: 0 | I110: 0 | J110: 26.23 | K110: 0 | L110: 275 | M110: 0 | N110: 26028.83 | O110: 26028.83 | P110: -3.637978807e-12 | Q110: 55862.14 | R110: 11.27 | S110: 0 | T110: 0.34 | U110: 0 | V110: 2.12 | W110: 0 | X110: 61 | Y110: 0 | Z110: =SUM(Q110:Y110) -> 55936.87 | AA110: 55936.87 | AB110: =SUM(Z110-AA110) -> -7.275957614e-12 | AC110: =SUM(P110+AB110) -> -1.091393642e-11
C111: State of IN Public Empl Def Comp Plan | E111: 22100.67 | F111: 0 | G111: 0 | H111: 0 | I111: 0 | J111: 20.45 | K111: 0 | L111: 107 | M111: 0 | N111: 22228.12 | O111: 22228.12 | P111: 0 | Q111: 10941.62 | R111: 0 | S111: 0 | T111: 0.34 | U111: 0 | V111: 2.12 | W111: 0 | X111: 1 | Y111: 0 | Z111: 10945.08 | AA111: 10945.08 | AB111: 1.818989404e-12 | AC111: 1.818989404e-12
C112: Tax Management Assn, Inc. | E112: 10039.22 | F112: 100.25 | G112: 0 | H112: 0 | I112: 0 | J112: 26.24 | K112: 0 | L112: 107 | M112: 0 | N112: 10272.71 | O112: 10272.71 | P112: 0 | Q112: 3987.98 | R112: 14.67 | S112: 0 | T112: 0.34 | U112: 0 | V112: 2.12 | W112: 0 | X112: 1 | Y112: 0 | Z112: =SUM(Q112:Y112) -> 4006.11 | AA112: 4006.11 | AB112: =SUM(Z112-AA112) -> 0 | AC112: =SUM(P112+AB112) -> 0
C113: Teach for America-Indpls | E113: 20158.69 | F113: 56.65 | G113: 0 | H113: 0 | I113: 0 | J113: 26.24 | K113: 0 | L113: 111 | M113: 0 | N113: =SUM(E113:M113) -> 20352.58 | O113: 20352.58 | P113: =SUM(N113-O113) -> 0 | Q113: 24488.04 | R113: 11.27 | S113: 0 | T113: 0.34 | U113: 0 | V113: 2.12 | W113: 0 | X113: 3 | Y113: 0 | Z113: =SUM(Q113:Y113) -> 24504.77 | AA113: 24504.77 | AB113: =SUM(Z113-AA113) -> 0 | AC113: =SUM(P113+AB113) -> 0
C114: Town of Fishers | E114: 9971.62 | F114: 72.69 | G114: 0 | H114: 0 | I114: 0 | J114: 26.24 | K114: 0 | L114: 107 | M114: 0 | N114: =SUM(E114:M114) -> 10177.55 | O114: 10177.55 | P114: =SUM(N114-O114) -> 1.818989404e-12 | Q114: 8261.65 | R114: 89.13 | S114: 0 | T114: 0.34 | U114: 0 | V114: 2.12 | W114: 0 | X114: 1 | Y114: 0 | Z114: =SUM(Q114:Y114) -> 8354.24 | AA114: 8354.24 | AB114: =SUM(Z114-AA114) -> 0 | AC114: =SUM(P114+AB114) -> 1.818989404e-12
C115: Town of Griffith | E115: 33641.41 | F115: 343.18 | G115: 0 | H115: 0 | I115: 0 | J115: 20.46 | K115: 0 | L115: 107 | M115: 0 | N115: =SUM(E115:M115) -> 34112.05 | O115: 34112.05 | P115: =SUM(N115-O115) -> 0 | Q115: 18613.1 | R115: 63.64 | S115: 0 | T115: 0.34 | U115: 0 | V115: 2.12 | W115: 0 | X115: 1 | Y115: 0 | Z115: =SUM(Q115:Y115) -> 18680.2 | AA115: 18680.2 | AB115: =SUM(Z115-AA115) -> -3.637978807e-12 | AC115: =SUM(P115+AB115) -> -3.637978807e-12
C116: Town of Munster | E116: 14817.67 | F116: 72.69 | G116: 0 | H116: 0 | I116: 0 | J116: 26.24 | K116: 0 | L116: 106 | M116: 0 | N116: =SUM(E116:M116) -> 15022.6 | O116: 15022.6 | P116: =SUM(N116-O116) -> 0 | Q116: 12507.6 | R116: 19.11 | S116: 0 | T116: 1.02 | U116: 0 | V116: 2.12 | W116: 0 | X116: 3 | Y116: 0 | Z116: =SUM(Q116:Y116) -> 12532.85 | AA116: 12532.85 | AB116: =SUM(Z116-AA116) -> 1.818989404e-12 | AC116: =SUM(P116+AB116) -> 1.818989404e-12
C117: Town of Speedway Redevelop Comm. | D117: TO | E117: 18692.77 | F117: 0 | G117: 0 | H117: 0 | I117: 0 | J117: 15.45 | K117: 0 | L117: 212 | M117: 0 | N117: =SUM(E117:M117) -> 18920.22 | O117: 18920.22 | P117: =SUM(N117-O117) -> 0 | Q117: 3917.68 | R117: 0 | S117: 0 | T117: 0.34 | U117: 0 | V117: 2.12 | W117: 0 | X117: 2 | Y117: 0 | Z117: =SUM(Q117:Y117) -> 3922.14 | AA117: 3922.14 | AB117: =SUM(Z117-AA117) -> 0 | AC117: =SUM(P117+AB117) -> 0
C118: UHS of Delaware Inc. | E118: 9152.29 | F118: 158.03 | G118: 0 | H118: 0 | I118: 0 | J118: 26.24 | K118: 0 | L118: 107 | M118: 0 | N118: =SUM(E118:M118) -> 9443.56 | O118: 9443.56 | P118: =SUM(N118-O118) -> 1.818989404e-12 | Q118: 9478.86 | R118: 23.55 | S118: 0 | T118: 0.34 | U118: 0 | V118: 2.12 | W118: 0 | X118: 1 | Y118: 0 | Z118: =SUM(Q118:Y118) -> 9505.87 | AA118: 9505.87 | AB118: =SUM(Z118-AA118) -> 0 | AC118: =SUM(P118+AB118) -> 1.818989404e-12
C119: University of Notre Dame du Lac | E119: 43687.15 | F119: 152.38 | G119: 0 | H119: 0 | I119: 0 | J119: 9.67 | K119: 0 | L119: 113 | M119: 0 | N119: =SUM(E119:M119) -> 43962.2 | O119: 43962.2 | P119: =SUM(N119-O119) -> 0 | Q119: 40515.15 | R119: 11.27 | S119: 0 | T119: 0.34 | U119: 0 | V119: 2.12 | W119: 0 | X119: 107 | Y119: 0 | Z119: =SUM(Q119:Y119) -> 40635.88 | AA119: 40635.88 | AB119: =SUM(Z119-AA119) -> 0 | AC119: =SUM(P119+AB119) -> 0
C120: Vectren Corp | D120: TA | E120: 5578.5 | F120: 0 | G120: 0 | H120: 0 | I120: 0 | J120: 0 | K120: 0 | L120: 0 | M120: 0 | N120: 5578.5 | O120: 5578.5 | P120: 0 | Z120: 0 | AB120: 0 | AC120: 0
C121: Vincennes Community School Corp | D121: TA | E121: 14350.03 | F121: 44.26 | G121: 0 | H121: 0 | I121: 0 | J121: 26.24 | K121: 0 | L121: 110 | M121: 0 | N121: 14530.53 | O121: 14530.53 | P121: 0 | Z121: 0 | AB121: 0 | AC121: 0
C122: Walmart | D122: TA | E122: 31950.43 | F122: 0 | G122: 0 | H122: 0 | I122: 0 | J122: 20.46 | K122: 0 | L122: 1 | M122: 0 | N122: 31971.89 | O122: 31971.89 | P122: 0 | Z122: 0 | AB122: 0 | AC122: 0
C123: Xerox | E123: 25170.9 | F123: 60.25 | G123: 0 | H123: 0 | I123: 0 | J123: 26.24 | K123: 0 | L123: 107 | M123: 0 | N123: 25364.39 | O123: 25364.39 | P123: 3.637978807e-12 | Q123: 19547.85 | R123: 11.27 | S123: 0 | T123: 0.34 | U123: 0 | V123: 2.12 | W123: 0 | X123: 1 | Y123: 0 | Z123: 19562.58 | AA123: 19562.58 | AB123: -3.637978807e-12 | AC123: 0
A124: 2013 | B124: Barnett, Thomas D | C124: Roche Diagnostics Corp | E124: 0 | F124: 0 | G124: 0 | H124: 0 | I124: 0 | J124: 0 | K124: 0 | L124: 0 | M124: 0 | N124: =SUM(E124:M124) -> 0 | O124: 0 | P124: =SUM(N124-O124) -> 0 | Q124: 0 | R124: 0 | S124: 0 | T124: 0 | U124: 0 | V124: 0 | W124: 0 | X124: 0 | Y124: 0 | Z124: =SUM(Q124:Y124) -> 0 | AA124: 0 | AB124: =SUM(Z124-AA124) -> 0 | AC124: =SUM(P124+AB124) -> 0
A125: 2012/2013 | B125: Barth, John | C125: Coordinated Care Corp IN, Inc. | E125: 0 | F125: 0 | G125: 0 | H125: 0 | I125: 0 | J125: 0 | K125: 0 | L125: 0 | M125: 0 | N125: =SUM(E125:M125) -> 0 | O125: 0 | P125: =SUM(N125-O125) -> 0 | Q125: 0 | R125: 0 | S125: 0 | T125: 0 | U125: 0 | V125: 0 | W125: 0 | X125: 0 | Y125: 0 | Z125: 0 | AA125: 0 | AB125: 0 | AC125: 0
A126: 2012/2013 | B126: Bauer, Beth | C126: ACEC IN | E126: 0 | F126: 0 | G126: 0 | H126: 0 | I126: 0 | J126: 0 | K126: 0 | L126: 0 | M126: 0 | N126: 0 | O126: 0 | P126: 0 | Q126: 0 | R126: 0 | S126: 0 | T126: 0 | U126: 0 | V126: 0 | W126: 0 | X126: 0 | Y126: 0 | Z126: 0 | AA126: 0 | AB126: 0 | AC126: 0
A127: 2013 | B127: Baumruck, Scott | C127: Prof Insurance Agents IN | E127: 0 | F127: 0 | G127: 0 | H127: 0 | I127: 0 | J127: 0 | K127: 0 | L127: 0 | M127: 0 | N127: =SUM(E127:M127) -> 0 | O127: 0 | P127: =SUM(N127-O127) -> 0 | Q127: 0 | R127: 0 | S127: 0 | T127: 0 | U127: 0 | V127: 0 | W127: 0 | X127: 0 | Y127: 0 | Z127: =SUM(Q127:Y127) -> 0 | AA127: 0 | AB127: =SUM(Z127-AA127) -> 0 | AC127: =SUM(P127+AB127) -> 0
A128: 2012/2013 | B128: Bazemore, Andrea | C128: Capitol Assets | D128: TO | E128: 0 | F128: 0 | G128: 0 | H128: 0 | I128: 0 | J128: 0 | K128: 0 | L128: 100 | M128: 0 | N128: 100 | O128: 0 | P128: 100 | Q128: 0 | R128: 0 | S128: 0 | T128: 0 | U128: 0 | V128: 0 | W128: 0 | X128: 0 | Y128: 0 | Z128: 0 | AA128: 0 | AB128: 0 | AC128: 100
A129: 2012/2013 | B129: Beaumont, Christopher | C129: IN Credit Union League | E129: 0 | F129: 0 | G129: 0 | H129: 0 | I129: 0 | J129: 0 | K129: 0 | L129: 0 | M129: 0 | N129: 0 | O129: 0 | P129: 0 | Q129: 0 | R129: 0 | S129: 0 | T129: 0 | U129: 0 | V129: 0 | W129: 0 | X129: 0 | Y129: 0 | Z129: 0 | AA129: 0 | AB129: 0 | AC129: 0
A130: 2012/2013 | B130: Beck, Robin | C130: Ice Miller | E130: 0 | F130: 0 | G130: 0 | H130: 0 | I130: 0 | J130: 0 | K130: 0 | L130: 0 | M130: 0 | N130: 0 | O130: 0 | P130: 0 | Q130: 0 | R130: 0 | S130: 0 | T130: 0 | U130: 0 | V130: 0 | W130: 0 | X130: 0 | Y130: 0 | Z130: 0 | AA130: 0 | AB130: 0 | AC130: 0
A131: 2012/2013 | B131: Bedan, Greg | C131: Third House LLC | D131: TA | E131: 0 | F131: 0 | G131: 0 | H131: 0 | I131: 0 | J131: 0 | K131: 0 | L131: 0 | M131: 0 | N131: 0 | O131: 0 | P131: 0 | Z131: 0 | AB131: 0 | AC131: 0
A132: 2012/2013 | B132: Beebe, Scherer & Assoc | C132: non client expenses | E132: 0 | F132: 0 | G132: 0 | H132: 0 | I132: 0 | J132: 78.73 | K132: 139.23 | L132: 0 | M132: 0 | N132: 217.96 | O132: 0 | P132: 217.96 | Q132: 0 | R132: 0 | S132: 0 | T132: 0 | U132: 0 | V132: 0 | W132: 0 | X132: 820 | Y132: 0 | Z132: 820 | AA132: 0 | AB132: 820 | AC132: 1037.96
C133: College of American Pathologists | D133: TA | E133: 2.5 | F133: 0 | G133: 0 | H133: 0 | I133: 0 | J133: 0 | K133: 0 | L133: 0 | M133: 0 | N133: =SUM(E133:M133) -> 2.5 | O133: 0 | P133: =SUM(N133-O133) -> 2.5 | Z133: =SUM(Q133:Y133) -> 0 | AB133: =SUM(Z133-AA133) -> 0 | AC133: =SUM(P133+AB133) -> 2.5
C134: IN Assn for Marriage & Family Therapists | E134: 30 | F134: 0 | G134: 0 | H134: 0 | I134: 0 | J134: 0 | K134: 0 | L134: 105 | M134: 0 | N134: =SUM(E134:M134) -> 135 | O134: 135 | P134: =SUM(N134-O134) -> 0 | Q134: 0 | R134: 0 | S134: 0 | T134: 0 | U134: 0 | V134: 0 | W134: 0 | X134: 205 | Y134: 0 | Z134: =SUM(Q134:Y134) -> 205 | AA134: 205 | AB134: =SUM(Z134-AA134) -> 0 | AC134: =SUM(P134+AB134) -> 0
C135: IN Assn Nurse Anesthetists | E135: 480 | F135: 0 | G135: 0 | H135: 0 | I135: 0 | J135: 0 | K135: 0 | L135: 105 | M135: 0 | N135: =SUM(E135:M135) -> 585 | O135: 585 | P135: =SUM(N135-O135) -> 0 | Q135: 24 | R135: 0 | S135: 0 | T135: 0 | U135: 0 | V135: 0 | W135: 0 | X135: 205 | Y135: 0 | Z135: =SUM(Q135:Y135) -> 229 | AA135: 229 | AB135: =SUM(Z135-AA135) -> 0 | AC135: =SUM(P135+AB135) -> 0
C136: IN Assn Pathologists | D136: TA | E136: 2.5 | F136: 0 | G136: 0 | H136: 0 | I136: 0 | J136: 0 | K136: 0 | L136: 0 | M136: 0 | N136: 2.5 | O136: 0 | P136: 2.5 | Z136: 0 | AB136: 0 | AC136: 2.5
C137: IN Chptr American Physical Thrpy Assn | E137: 420 | F137: 0 | G137: 0 | H137: 67.2 | I137: 0 | J137: 0 | K137: 0 | L137: 0 | M137: 0 | N137: =SUM(E137:M137) -> 487.2 | O137: 0 | P137: =SUM(N137-O137) -> 487.2 | Q137: 0 | R137: 0 | S137: 0 | T137: 0 | U137: 0 | V137: 0 | W137: 0 | X137: 0 | Y137: 0 | Z137: =SUM(Q137:Y137) -> 0 | AA137: 0 | AB137: =SUM(Z137-AA137) -> 0 | AC137: =SUM(P137+AB137) -> 487.2
C138: IN Dental Hygienists Assn | E138: 29.9 | F138: 0 | G138: 0 | H138: 0 | I138: 0 | J138: 0 | K138: 0 | L138: 0 | M138: 0 | N138: 29.9 | O138: 0 | P138: 29.9 | Q138: 30 | R138: 0 | S138: 0 | T138: 12.9 | U138: 0 | V138: 0 | W138: 0 | X138: 0 | Y138: 0 | Z138: 42.9 | AA138: 30 | AB138: 12.9 | AC138: 42.8
C139: IN Fire Chiefs Assn | E139: 300 | F139: 0 | G139: 0 | H139: 0 | I139: 0 | J139: 0 | K139: 0 | L139: 105 | M139: 0 | N139: =SUM(E139:M139) -> 405 | O139: 405 | P139: =SUM(N139-O139) -> 0 | Q139: 10 | R139: 0 | S139: 0 | T139: 0 | U139: 0 | V139: 0 | W139: 0 | X139: 205 | Y139: 0 | Z139: =SUM(Q139:Y139) -> 215 | AA139: 215 | AB139: =SUM(Z139-AA139) -> 0 | AC139: =SUM(P139+AB139) -> 0
C140: IN Health Care Assn | E140: 180 | F140: 0 | G140: 0 | H140: 0 | I140: 0 | J140: 0 | K140: 0 | L140: 0 | M140: 0 | N140: =SUM(E140:M140) -> 180 | O140: 0 | P140: =SUM(N140-O140) -> 180 | Q140: 90 | R140: 0 | S140: 0 | T140: 0 | U140: 0 | V140: 0 | W140: 0 | X140: 0 | Y140: 0 | Z140: =SUM(Q140:Y140) -> 90 | AA140: 90 | AB140: =SUM(Z140-AA140) -> 0 | AC140: =SUM(P140+AB140) -> 180
C141: IN Retired Teachers Assn | E141: 240 | F141: 0 | G141: 0 | H141: 0 | I141: 0 | J141: 0 | K141: 0 | L141: 0 | M141: 0 | N141: =SUM(E141:M141) -> 240 | O141: 0 | P141: =SUM(N141-O141) -> 240 | Q141: 180 | R141: 0 | S141: 0 | T141: 0 | U141: 0 | V141: 0 | W141: 0 | X141: 0 | Y141: 0 | Z141: =SUM(Q141:Y141) -> 180 | AA141: 180 | AB141: =SUM(Z141-AA141) -> 0 | AC141: =SUM(P141+AB141) -> 240
C142: IN Society of Respiratory Care | E142: 31 | F142: 0 | G142: 0 | H142: 0 | I142: 0 | J142: 0 | K142: 0 | L142: 55 | M142: 0 | N142: 86 | O142: 86 | P142: 0 | Q142: 0 | R142: 0 | S142: 0 | T142: 0 | U142: 0 | V142: 0 | W142: 0 | X142: 105 | Y142: 0 | Z142: 105 | AA142: 105 | AB142: 0 | AC142: 0
C143: IN Speeh Language Hearing Assn | E143: 300 | F143: 0 | G143: 0 | H143: 0 | I143: 0 | J143: 0 | K143: 0 | L143: 105 | M143: 0 | N143: 405 | O143: 405 | P143: 0 | Q143: 0 | R143: 0 | S143: 0 | T143: 0 | U143: 0 | V143: 0 | W143: 0 | X143: 205 | Y143: 0 | Z143: 205 | AA143: 205 | AB143: 0 | AC143: 0
C144: IN Vending Council | E144: 90.6 | F144: 0 | G144: 0 | H144: 0 | I144: 0 | J144: 0 | K144: 0 | L144: 0 | M144: 0 | N144: =SUM(E144:M144) -> 90.6 | O144: 0 | P144: =SUM(N144-O144) -> 90.6 | Q144: 45.3 | R144: 0 | S144: 0 | T144: 0 | U144: 0 | V144: 0 | W144: 0 | X144: 0 | Y144: 0 | Z144: =SUM(Q144:Y144) -> 45.3 | AA144: 45.3 | AB144: =SUM(Z144-AA144) -> 0 | AC144: =SUM(P144+AB144) -> 90.6
C145: IN Wholesale Distributors Assn | E145: 8.25 | F145: 0 | G145: 0 | H145: 0 | I145: 0 | J145: 0 | K145: 0 | L145: 0 | M145: 0 | N145: 8.25 | O145: 0 | P145: 8.25 | Q145: 0 | R145: 0 | S145: 0 | T145: 0 | U145: 0 | V145: 0 | W145: 0 | X145: 0 | Y145: 0 | Z145: 0 | AA145: 0 | AB145: 0 | AC145: 8.25
A146: 2012/2013 | B146: Beebe, Steven | C146: Beebe Scherer & Assoc. | E146: 0 | F146: 0 | G146: 0 | H146: 0 | I146: 0 | J146: 0 | K146: 0 | L146: 0 | M146: 0 | N146: 0 | O146: 0 | P146: 0 | Q146: 0 | R146: 0 | S146: 0 | T146: 0 | U146: 0 | V146: 0 | W146: 0 | X146: 0 | Y146: 0 | Z146: 0 | AA146: 0 | AB146: 0 | AC146: 0
A147: 2012/2013 | B147: Belch, Louis | C147: The Corydon Group | E147: 0 | F147: 0 | G147: 0 | H147: 4050.41 | I147: 0 | J147: 784.75 | K147: 661.18 | L147: 0 | M147: 0 | N147: 5496.34 | O147: 5496.34 | P147: 0 | Q147: 0 | R147: 0 | S147: 0 | T147: 163.8 | U147: 0 | V147: 0 | W147: 409.17 | X147: 0 | Y147: 0 | Z147: 572.97 | AA147: 572.97 | AB147: 0 | AC147: 0
A148: 2012/2013 | B148: Bell, Jason | C148: IN Trial Lawyers Assn | E148: 0 | F148: 0 | G148: 0 | H148: 0 | I148: 0 | J148: 0 | K148: 0 | L148: 0 | M148: 0 | N148: 0 | O148: 0 | P148: 0 | Q148: 0 | R148: 0 | S148: 0 | T148: 0 | U148: 0 | V148: 0 | W148: 0 | X148: 0 | Y148: 0 | Z148: 0 | AA148: 0 | AB148: 0 | AC148: 0
A149: 2013 | B149: Bell, Matt | C149: Catalyst Public Affairs Grp | D149: P2 | N149: =SUM(E149:M149) -> 0 | O149: 0 | P149: =SUM(N149-O149) -> 0 | Q149: 0 | R149: 0 | S149: 0 | T149: 0 | U149: 0 | V149: 0 | W149: 0 | X149: 0 | Y149: 0 | Z149: =SUM(Q149:Y149) -> 0 | AA149: 0 | AB149: =SUM(Z149-AA149) -> 0 | AC149: =SUM(P149+AB149) -> 0
A150: 2013 | B150: Belskus, Jeffrey | C150: Indpls Motor Speedway | E150: 0 | F150: 0 | G150: 0 | H150: 0 | I150: 0 | J150: 0 | K150: 0 | L150: 0 | M150: 0 | N150: =SUM(E150:M150) -> 0 | O150: 0 | P150: =SUM(N150-O150) -> 0 | Q150: 0 | R150: 0 | S150: 0 | T150: 0 | U150: 0 | V150: 0 | W150: 0 | X150: 0 | Y150: 0 | Z150: 0 | AA150: 0 | AB150: 0 | AC150: 0
A151: 2012/2013 | B151: Benen, Sandie | C151: GlaxoSmithKline | E151: 0 | F151: 0 | G151: 0 | H151: 184.02 | I151: 0 | J151: 0 | K151: 0 | L151: 0 | M151: 0 | N151: 184.02 | O151: 184.02 | P151: 0 | Q151: 0 | R151: 0 | S151: 0 | T151: 38.5 | U151: 0 | V151: 0 | W151: 0 | X151: 0 | Y151: 0 | Z151: 38.5 | AA151: 38.5 | AB151: 0 | AC151: 0
A152: 2012/2013 | B152: Bennett, Patrick | C152: PKB Consulting LLC | E152: 0 | F152: 0 | G152: 0 | H152: 0 | I152: 0 | J152: 0 | K152: 0 | L152: 100 | M152: 0 | N152: 100 | O152: 0 | P152: 100 | Q152: 0 | R152: 0 | S152: 0 | T152: 0 | U152: 0 | V152: 0 | W152: 0 | X152: 100 | Y152: 0 | Z152: 100 | AA152: 0 | AB152: 100 | AC152: 200
A153: 2012 | B153: Bennett Steury, Rachel | C153: Pub Policy Fund dba All. American Manuf | D153: TA | E153: 0 | F153: 0 | G153: 0 | H153: 0 | I153: 0 | J153: 0 | K153: 0 | L153: 0 | M153: 0 | N153: =SUM(E153:M153) -> 0 | O153: 0 | P153: =SUM(N153-O153) -> 0 | Z153: =SUM(Q153:Y153) -> 0 | AB153: =SUM(Z153-AA153) -> 0 | AC153: =SUM(P153+AB153) -> 0
A154: 2013 | B154: Benske, John | C154: Amgen | E154: 0 | F154: 0 | G154: 0 | H154: 0 | I154: 0 | J154: 0 | K154: 0 | L154: 0 | M154: 0 | N154: 0 | O154: 0 | P154: 0 | Q154: 0 | R154: 0 | S154: 0 | T154: 0 | U154: 0 | V154: 0 | W154: 0 | X154: 0 | Y154: 0 | Z154: 0 | AA154: 0 | AB154: 0 | AC154: 0
A155: 2012/2013 | B155: Berger, Andrew | C155: Assn of IN Counties | E155: 0 | F155: 0 | G155: 0 | H155: 0 | I155: 0 | J155: 0 | K155: 0 | L155: 0 | M155: 0 | N155: 0 | O155: 0 | P155: 0 | Q155: 0 | R155: 0 | S155: 0 | T155: 0 | U155: 0 | V155: 0 | W155: 0 | X155: 0 | Y155: 0 | Z155: 0 | AA155: 0 | AB155: 0 | AC155: 0
A156: 2012/2013 | B156: Bergsma, Brian | C156: IN Michigan Power | E156: 0 | F156: 0 | G156: 0 | H156: 0 | I156: 0 | J156: 0 | K156: 0 | L156: 0 | M156: 0 | N156: 0 | O156: 0 | P156: 0 | Q156: 0 | R156: 0 | S156: 0 | T156: 0 | U156: 0 | V156: 0 | W156: 0 | X156: 0 | Y156: 0 | Z156: 0 | AA156: 0 | AB156: 0 | AC156: 0
A157: 2012/2013 | B157: Berron, Karl | C157: IN Assn of Realtors, Inc. | E157: 0 | F157: 0 | G157: 0 | H157: 0 | I157: 0 | J157: 0 | K157: 0 | L157: 0 | M157: 0 | N157: 0 | O157: 0 | P157: 0 | Q157: 0 | R157: 0 | S157: 0 | T157: 0 | U157: 0 | V157: 0 | W157: 0 | X157: 0 | Y157: 0 | Z157: 0 | AA157: 0 | AB157: 0 | AC157: 0
A158: 2012/2013 | B158: Bess, Todd | C158: IN School Principals Assn | E158: 0 | F158: 0 | G158: 0 | H158: 0 | I158: 0 | J158: 0 | K158: 0 | L158: 0 | M158: 0 | N158: =SUM(E158:M158) -> 0 | O158: 0 | P158: =SUM(N158-O158) -> 0 | Q158: 0 | R158: 0 | S158: 0 | T158: 0 | U158: 0 | V158: 0 | W158: 0 | X158: 0 | Y158: 0 | Z158: 0 | AA158: 0 | AB158: 0 | AC158: 0
A159: 2012/2013 | B159: Betancourt, Bonny | C159: Covanta Energy Corp | E159: 0 | F159: 0 | G159: 0 | H159: 0 | I159: 0 | J159: 0 | K159: 0 | L159: 0 | M159: 0 | N159: 0 | O159: 0 | P159: 0 | Q159: 0 | R159: 0 | S159: 0 | T159: 0 | U159: 0 | V159: 0 | W159: 0 | X159: 0 | Y159: 0 | Z159: =SUM(Q159:Y159) -> 0 | AA159: 0 | AB159: =SUM(Z159-AA159) -> 0 | AC159: =SUM(P159+AB159) -> 0
A160: 2012/2013 | B160: Biberstine, Michael | C160: Frost Brown Todd LLC | E160: 0 | F160: 0 | G160: 0 | H160: 120 | I160: 0 | J160: 0 | K160: 0 | L160: 0 | M160: 0 | N160: 120 | O160: 0 | P160: 120 | Q160: 0 | R160: 0 | S160: 0 | T160: 0 | U160: 0 | V160: 0 | W160: 0 | X160: 100 | Y160: 0 | Z160: =SUM(Q160:Y160) -> 100 | AA160: 0 | AB160: =SUM(Z160-AA160) -> 100 | AC160: =SUM(P160+AB160) -> 220
A161: 2012/2013 | B161: Bickel, Sandra | C161: Girl Scouts of Central IN | D161: TA | E161: 0 | F161: 0 | G161: 0 | H161: 0 | I161: 0 | J161: 0 | K161: 0 | L161: 50 | M161: 0 | N161: 50 | O161: 50 | P161: 0 | Q161: 0 | R161: 0 | S161: 0 | T161: 0 | U161: 0 | V161: 0 | W161: 0 | X161: 0 | Y161: 0 | Z161: 0 | AA161: 0 | AB161: 0 | AC161: 0
A162: 2012/2013 | B162: Biles, Christopher | C162: Natl Rifle Assn of America | E162: 0 | F162: 0 | G162: 0 | H162: 0 | I162: 0 | J162: 0 | K162: 0 | L162: 0 | M162: 0 | N162: 0 | O162: 0 | P162: 0 | Q162: 0 | R162: 0 | S162: 0 | T162: 0 | U162: 0 | V162: 0 | W162: 0 | X162: 0 | Y162: 0 | Z162: 0 | AA162: 0 | AB162: 0 | AC162: 0
A163: 2012/2013 | B163: Bingham Greenebaum Doll | C163: non client expenses | N163: 0 | P163: 0 | Q163: 0 | R163: 0 | S163: 0 | T163: 0 | U163: 0 | V163: 0 | W163: 0 | X163: 0 | Y163: 0 | Z163: 0 | AA163: 0 | AB163: 0 | AC163: 0
C164: Pinnacle | E164: 78900.97 | F164: 0 | G164: 0 | H164: 0 | I164: 0 | J164: 0 | K164: 0 | L164: 0 | M164: 0 | N164: =SUM(E164:M164) -> 78900.97 | O164: 0 | P164: =SUM(N164-O164) -> 78900.97 | Q164: 9785.84 | R164: 0 | S164: 0 | T164: 0 | U164: 0 | V164: 0 | W164: 0 | X164: 0 | Y164: 0 | Z164: =SUM(Q164:Y164) -> 9785.84 | AA164: 0 | AB164: =SUM(Z164-AA164) -> 9785.84 | AC164: =SUM(P164+AB164) -> 88686.81
C165: Capital Imprv Board of Mgrs Marion Co | E165: 0 | F165: 0 | G165: 0 | H165: 0 | I165: 0 | J165: 0 | K165: 0 | L165: 0 | M165: 0 | N165: =SUM(E165:M165) -> 0 | O165: 0 | P165: =SUM(N165-O165) -> 0 | Q165: 0 | R165: 0 | S165: 0 | T165: 0 | U165: 0 | V165: 0 | W165: 0 | X165: 0 | Y165: 0 | Z165: =SUM(Q165:Y165) -> 0 | AA165: 0 | AB165: =SUM(Z165-AA165) -> 0 | AC165: =SUM(P165+AB165) -> 0
C166: City of Bloomington, IN | E166: 0 | F166: 0 | G166: 0 | H166: 0 | I166: 0 | J166: 0 | K166: 0 | L166: 0 | M166: 0 | N166: 0 | O166: 0 | P166: 0 | Q166: 9577.9 | R166: 0 | S166: 0 | T166: 0 | U166: 0 | V166: 0 | W166: 0 | X166: 0 | Y166: 0 | Z166: 9577.9 | AA166: 0 | AB166: 9577.9 | AC166: 9577.9
C167: Gamimg Laboratories Intl. | E167: 7377.16 | F167: 0 | G167: 0 | H167: 0 | I167: 0 | J167: 0 | K167: 0 | L167: 0 | M167: 0 | N167: 7377.16 | O167: 0 | P167: 7377.16 | Q167: 1084.12 | R167: 0 | S167: 0 | T167: 0 | U167: 0 | V167: 0 | W167: 0 | X167: 0 | Y167: 0 | Z167: 1084.12 | AA167: 0 | AB167: 1084.12 | AC167: 8461.28
C168: IN Gasification | D168: TO | E168: 3616.19 | F168: 0 | G168: 0 | H168: 0 | I168: 0 | J168: 0 | K168: 0 | L168: 0 | M168: 0 | N168: =SUM(E168:M168) -> 3616.19 | O168: 0 | P168: =SUM(N168-O168) -> 3616.19 | Q168: 148943.82 | R168: 0 | S168: 0 | T168: 0 | U168: 0 | V168: 0 | W168: 0 | X168: 0 | Y168: 0 | Z168: =SUM(Q168:Y168) -> 148943.82 | AA168: 0 | AB168: =SUM(Z168-AA168) -> 148943.82 | AC168: =SUM(P168+AB168) -> 152560.01
C169: IN Public Charter Schools Assn | E169: 49983.36 | F169: 0 | G169: 0 | H169: 0 | I169: 0 | J169: 0 | K169: 0 | L169: 0 | M169: 0 | N169: =SUM(E169:M169) -> 49983.36 | O169: 0 | P169: =SUM(N169-O169) -> 49983.36 | Q169: 149738.57 | R169: 0 | S169: 0 | T169: 0 | U169: 0 | V169: 0 | W169: 0 | X169: 0 | Y169: 0 | Z169: =SUM(Q169:Y169) -> 149738.57 | AA169: 0 | AB169: =SUM(Z169-AA169) -> 149738.57 | AC169: =SUM(P169+AB169) -> 199721.93
C170: Magellan Health Svc | D170: P2 | N170: =SUM(E170:M170) -> 0 | O170: 0 | P170: =SUM(N170-O170) -> 0 | Q170: 0 | R170: 0 | S170: 0 | T170: 0 | U170: 0 | V170: 0 | W170: 0 | X170: 0 | Y170: 0 | Z170: =SUM(Q170:Y170) -> 0 | AA170: 0 | AB170: =SUM(Z170-AA170) -> 0 | AC170: =SUM(P170+AB170) -> 0
C171: Intl Union of Operating Eng Local 150 | D171: P2 | N171: =SUM(E171:M171) -> 0 | O171: 0 | P171: =SUM(N171-O171) -> 0 | Q171: 0 | R171: 0 | S171: 0 | T171: 0 | U171: 0 | V171: 0 | W171: 0 | X171: 0 | Y171: 0 | Z171: =SUM(Q171:Y171) -> 0 | AA171: 0 | AB171: =SUM(Z171-AA171) -> 0 | AC171: =SUM(P171+AB171) -> 0
A172: 2012/2013 | B172: Blackwell, Leo | C172: IN Fraternal Order of Police | E172: 0 | F172: 0 | G172: 0 | H172: 0 | I172: 0 | J172: 0 | K172: 0 | L172: 0 | M172: 0 | N172: =SUM(E172:M172) -> 0 | O172: 0 | P172: =SUM(N172-O172) -> 0 | Q172: 0 | R172: 0 | S172: 0 | T172: 0 | U172: 0 | V172: 0 | W172: 0 | X172: 0 | Y172: 0 | Z172: =SUM(Q172:Y172) -> 0 | AA172: 0 | AB172: =SUM(Z172-AA172) -> 0 | AC172: =SUM(P172+AB172) -> 0
A173: 2012/2013 | B173: Blanford, Allyson | C173: Express Scripts Holding Co | E173: 0 | F173: 0 | G173: 0 | H173: 0 | I173: 0 | J173: 0 | K173: 0 | L173: 0 | M173: 0 | N173: =SUM(E173:M173) -> 0 | O173: 0 | P173: =SUM(N173-O173) -> 0 | Q173: 0 | R173: 0 | S173: 0 | T173: 0 | U173: 0 | V173: 0 | W173: 0 | X173: 0 | Y173: 0 | Z173: =SUM(Q173:Y173) -> 0 | AA173: 0 | AB173: =SUM(Z173-AA173) -> 0 | AC173: =SUM(P173+AB173) -> 0
A174: 2013 | B174: Block, Matthew | C174: Ameristar Casinos, Inc. | E174: 0 | F174: 0 | G174: 0 | H174: 0 | I174: 0 | J174: 0 | K174: 0 | L174: 0 | M174: 0 | N174: 0 | O174: 0 | P174: 0 | Q174: 0 | R174: 0 | S174: 0 | T174: 0 | U174: 0 | V174: 0 | W174: 0 | X174: 0 | Y174: 0 | Z174: 0 | AA174: 0 | AB174: 0 | AC174: 0
A175: 2013 | B175: Blosser, Elizabeth | C175: Connection Strategy LLC | E175: 0 | F175: 0 | G175: 0 | H175: 0 | I175: 0 | J175: 0 | K175: 0 | L175: 100 | M175: 0 | N175: =SUM(E175:M175) -> 100 | O175: 100 | P175: =SUM(N175-O175) -> 0 | Q175: 0 | R175: 0 | S175: 0 | T175: 0 | U175: 0 | V175: 0 | W175: 0 | X175: 0 | Y175: 0 | Z175: =SUM(Q175:Y175) -> 0 | AA175: 0 | AB175: =SUM(Z175-AA175) -> 0 | AC175: =SUM(P175+AB175) -> 0
A176: 2012/2013 | B176: Blue & Co., LLC | C176: IN Hospital & Health Assn | E176: 0 | F176: 0 | G176: 0 | H176: 0 | I176: 0 | J176: 0 | K176: 0 | L176: 100 | M176: 0 | N176: 100 | O176: 100 | P176: 0 | Q176: 0 | R176: 0 | S176: 0 | T176: 0 | U176: 0 | V176: 0 | W176: 0 | X176: 0 | Y176: 0 | Z176: 0 | AA176: 0 | AB176: 0 | AC176: 0
C177: IN Council of Community Mental Health Centers | E177: 0 | F177: 0 | G177: 0 | H177: 0 | I177: 0 | J177: 0 | K177: 0 | L177: 100 | M177: 0 | N177: 100 | O177: 100 | P177: 0 | Q177: 0 | R177: 0 | S177: 0 | T177: 0 | U177: 0 | V177: 0 | W177: 0 | X177: 0 | Y177: 0 | Z177: 0 | AA177: 0 | AB177: 0 | AC177: 0
A178: 2012/2013 | B178: Blunt, Camille | C178: See Clients Bose Public Affairs Group LLC | E178: 49.82 | F178: 0 | G178: 0 | H178: 0 | I178: 0 | J178: 0 | K178: 247.09 | L178: 0 | M178: 0 | N178: 296.91 | O178: 296.91 | P178: 0 | Q178: 89.49 | R178: 0 | S178: 0 | T178: 0 | U178: 0 | V178: 0 | W178: 0 | X178: 0 | Y178: 0 | Z178: 89.49 | AA178: 89.49 | AB178: 0 | AC178: 0
A179: 2012/2013 | B179: Boerste, Dean | C179: Bernardin, Lochmueller & Associates, Inc. | E179: 0 | F179: 0 | G179: 0 | H179: 0 | I179: 0 | J179: 0 | K179: 0 | L179: 0 | M179: 0 | N179: 0 | O179: 0 | P179: 0 | Q179: 0 | R179: 0 | S179: 0 | T179: 0 | U179: 0 | V179: 0 | W179: 0 | X179: 0 | Y179: 0 | Z179: 0 | AA179: 0 | AB179: 0 | AC179: 0
A180: 2012/2013 | B180: Boldt, Sherry L | C180: BP America | E180: 0 | F180: 0 | G180: 0 | H180: 0 | I180: 0 | J180: 0 | K180: 0 | L180: 105 | M180: 0 | N180: 105 | O180: 0 | P180: =SUM(N180-O180) -> 105 | Q180: 0 | R180: 0 | S180: 0 | T180: 0 | U180: 0 | V180: 0 | W180: 0 | X180: 205 | Y180: 0 | Z180: 205 | AA180: 0 | AB180: 205 | AC180: 310
A181: 2013 | B181: Boles, J. Douglas | C181: Indpls Motor Speedway | E181: 0 | F181: 0 | G181: 0 | H181: 0 | I181: 0 | J181: 0 | K181: 0 | L181: 0 | M181: 0 | N181: =SUM(E181:M181) -> 0 | O181: 0 | P181: =SUM(N181-O181) -> 0 | Q181: 0 | R181: 0 | S181: 0 | T181: 0 | U181: 0 | V181: 0 | W181: 0 | X181: 0 | Y181: 0 | Z181: =SUM(Q181:Y181) -> 0 | AA181: 0 | AB181: =SUM(Z181-AA181) -> 0 | AC181: =SUM(P181+AB181) -> 0
A182: 2012/2013 | B182: Bolinger, Gary M. | C182: IN CPA Society | E182: 0 | F182: 0 | G182: 0 | H182: 19.16 | I182: 0 | J182: 0 | K182: 0 | L182: 0 | M182: 0 | N182: 19.16 | O182: 0 | P182: 19.16 | Q182: 0 | R182: 0 | S182: 0 | T182: 0 | U182: 0 | V182: 0 | W182: 0 | X182: 0 | Y182: 0 | Z182: 0 | AA182: 0 | AB182: 0 | AC182: 19.16
A183: 2012/2013 | B183: Bond, Jon | C183: Lewis Kappes Governmental Relations Group | E183: 0 | F183: 0 | G183: 0 | H183: 0 | I183: 0 | J183: 0 | K183: 0 | L183: 0 | M183: 0 | N183: 0 | O183: 0 | P183: 0 | Q183: 0 | R183: 0 | S183: 0 | T183: 0 | U183: 0 | V183: 0 | W183: 0 | X183: 0 | Y183: 0 | Z183: 0 | AA183: 0 | AB183: 0 | AC183: 0
A184: 2012/2013 | B184: Borror, Randy | C184: Client of Bose Public Affairs Group | E184: 0 | F184: 0 | G184: 0 | H184: 469.54 | I184: 0 | J184: 0 | K184: 1571.68 | L184: 0 | M184: 0 | N184: =SUM(E184:M184) -> 2041.22 | O184: 2041.22 | P184: =SUM(N184-O184) -> 0 | Q184: 0 | R184: 0 | S184: 0 | T184: 196.75 | U184: 0 | V184: 0 | W184: 953.41 | X184: 0 | Y184: 0 | Z184: =SUM(Q184:Y184) -> 1150.16 | AA184: 1150.16 | AB184: =SUM(Z184-AA184) -> -2.273736754e-13 | AC184: =SUM(P184+AB184) -> -2.273736754e-13
A185: 2012/2013 | B185: Bose McKinney Evans | C185: IN Bankers Assn | D185: TO | E185: 0 | F185: 0 | G185: 0 | H185: 0 | I185: 0 | J185: 0 | K185: 0 | L185: 0 | M185: 0 | N185: 0 | O185: 0 | P185: 0 | Q185: 0 | R185: 0 | S185: 0 | T185: 0 | U185: 0 | V185: 0 | W185: 0 | X185: 0 | Y185: 0 | Z185: 0 | AA185: 0 | AB185: 0 | AC185: 0
C186: Town of Mooresville | D186: TO | E186: 0 | F186: 0 | G186: 0 | H186: 0 | I186: 0 | J186: 0 | K186: 0 | L186: 0 | M186: 0 | N186: 0 | O186: 0 | P186: 0 | Q186: 2300.89 | R186: 107 | S186: 0 | T186: 0 | U186: 0 | V186: 0 | W186: 0 | X186: 0 | Y186: 0 | Z186: 2407.89 | AA186: 2407.89 | AB186: 0 | AC186: 0
C187: non client expenses | E187: 0 | F187: 0 | G187: 0 | H187: 0 | I187: 0 | J187: 0 | K187: 196 | L187: 324 | M187: 0 | N187: =SUM(E187:M187) -> 520 | O187: 0 | P187: =SUM(N187-O187) -> 520 | Q187: 0 | R187: 0 | S187: 0 | T187: 0 | U187: 0 | V187: 0 | W187: 266.12 | X187: 5 | Y187: 0 | Z187: =SUM(Q187:Y187) -> 271.12 | AA187: 0 | AB187: =SUM(Z187-AA187) -> 271.12 | AC187: =SUM(P187+AB187) -> 791.12
A188: 2012/2013 | B188: Bose Public Affairs Group | C188: non client expenses | E188: 0 | F188: 49.82 | G188: 0 | H188: 0 | I188: 0 | J188: 0 | K188: 0 | L188: 2014 | M188: 0 | N188: 2063.82 | O188: 0 | P188: 2063.82 | Q188: 0 | R188: 43.33 | S188: 0 | T188: 132.51 | U188: 0 | V188: 0 | W188: 557.64 | X188: 45 | Y188: 0 | Z188: 778.48 | AA188: 0 | AB188: 778.48 | AC188: 2842.3
C189: Abbott Laboratories, Inc. | E189: 369.95 | F189: 39.06 | G189: 20 | H189: 21.09 | I189: 0 | J189: 104.23 | K189: 0 | L189: 107 | M189: 0 | N189: =SUM(E189:M189) -> 661.33 | O189: 661.33 | P189: =SUM(N189-O189) -> -1.136868377e-13 | Q189: 1832.23 | R189: 390.19 | S189: 0 | T189: 0 | U189: 0 | V189: 93.67 | W189: 0 | X189: 2 | Y189: 0 | Z189: =SUM(Q189:Y189) -> 2318.09 | AA189: 2318.09 | AB189: =SUM(Z189-AA189) -> 0 | AC189: =SUM(P189+AB189) -> -1.136868377e-13
C190: Abengoa Bioenergy of IN | D190: TA | E190: 1102.8 | F190: 9.59 | G190: 0 | H190: 0 | I190: 0 | J190: 0 | K190: 0 | L190: 2 | M190: 0 | N190: 1114.39 | O190: 0 | P190: 1114.39 | Z190: 0 | AB190: 0 | AC190: 1114.39
C191: Aetna, Inc. | E191: 564.67 | F191: 51.94 | G191: 0 | H191: 60.97 | I191: 0 | J191: 124.23 | K191: 0 | L191: 107 | M191: 0 | N191: 908.81 | O191: 908.81 | P191: 0 | Q191: 1633.38 | R191: 132.43 | S191: 0 | T191: 0 | U191: 0 | V191: 122.06 | W191: 0 | X191: 2 | Y191: 0 | Z191: 1889.87 | AA191: 1889.87 | AB191: 2.273736754e-13 | AC191: 2.273736754e-13
C192: AFLAC | E192: 515.99 | F192: 51.94 | G192: 20 | H192: 60.97 | I192: 0 | J192: 104.23 | K192: 0 | L192: 1 | M192: 0 | N192: 754.13 | O192: 754.13 | P192: 1.136868377e-13 | Q192: 1107.86 | R192: 132.43 | S192: 0 | T192: 0 | U192: 0 | V192: 122.06 | W192: 0 | X192: 1 | Y192: 0 | Z192: 1363.35 | AA192: 1363.35 | AB192: 0 | AC192: 1.136868377e-13
C193: Alliance of Automobile Manufacturers | E193: 2570.21 | F193: 0 | G193: 0 | H193: 0 | I193: 0 | J193: 0 | K193: 0 | L193: 2 | M193: 0 | N193: 2572.21 | O193: 2572.21 | P193: 0 | Q193: 4303.6 | R193: 298.91 | S193: 0 | T193: 0 | U193: 0 | V193: 0 | W193: 0 | X193: 107 | Y193: 0 | Z193: 4709.51 | AA193: 4709.51 | AB193: 0 | AC193: 0
C194: Alpha Rae Personnel, Inc. | E194: 0 | F194: 0 | G194: 0 | H194: 0 | I194: 0 | J194: 0 | K194: 0 | L194: 107 | M194: 0 | N194: 107 | O194: 107 | P194: 0 | Q194: 0 | R194: 0 | S194: 0 | T194: 0 | U194: 0 | V194: 0 | W194: 0 | X194: 0 | Y194: 0 | Z194: 0 | AA194: 0 | AB194: 0 | AC194: 0
C195: American Insurance Assn | E195: 369.95 | F195: 29.47 | G195: 20 | H195: 21.09 | I195: 0 | J195: 115.82 | K195: 0 | L195: 107 | M195: 0 | N195: =SUM(E195:M195) -> 663.33 | O195: 663.33 | P195: =SUM(N195-O195) -> -1.136868377e-13 | Q195: 1136.26 | R195: 2.56 | S195: 0 | T195: 0 | U195: 0 | V195: 0 | W195: 0 | X195: 2 | Y195: 0 | Z195: =SUM(Q195:Y195) -> 1140.82 | AA195: 1140.82 | AB195: =SUM(Z195-AA195) -> 0 | AC195: =SUM(P195+AB195) -> -1.136868377e-13
C196: American Traffic Solutions | D196: TA | E196: 11427.52 | F196: 29.47 | G196: 0 | H196: 4.88 | I196: 0 | J196: 104.23 | K196: 0 | L196: 0 | M196: 0 | N196: =SUM(E196:M196) -> 11566.1 | O196: 11566.1 | P196: =SUM(N196-O196) -> -1.818989404e-12 | Z196: =SUM(Q196:Y196) -> 0 | AB196: =SUM(Z196-AA196) -> 0 | AC196: =SUM(P196+AB196) -> -1.818989404e-12
C197: Assn of IN Life Insurance Companies | E197: 1791.36 | F197: 51.94 | G197: 20 | H197: 110.55 | I197: 0 | J197: 104.23 | K197: 0 | L197: 107 | M197: 0 | N197: 2185.08 | O197: 2185.08 | P197: 0 | Q197: 1761.21 | R197: 132.43 | S197: 0 | T197: 0 | U197: 0 | V197: 39.98 | W197: 0 | X197: 2 | Y197: 0 | Z197: 1935.62 | AA197: 1935.62 | AB197: 2.273736754e-13 | AC197: 2.273736754e-13
C198: Asurion Insurance Svcs Inc. | E198: 233.66 | F198: 0 | G198: 0 | H198: 0 | I198: 0 | J198: 0 | K198: 0 | L198: 107 | M198: 0 | N198: =SUM(E198:M198) -> 340.66 | O198: 340.66 | P198: =SUM(N198-O198) -> -5.684341886e-14 | Q198: 0 | R198: 0 | S198: 0 | T198: 0 | U198: 0 | V198: 0 | W198: 0 | X198: 0 | Y198: 0 | Z198: =SUM(Q198:Y198) -> 0 | AA198: 0 | AB198: =SUM(Z198-AA198) -> 0 | AC198: =SUM(P198+AB198) -> -5.684341886e-14
C199: Bose McKinney & Evans | E199: 0 | F199: 0 | G199: 0 | H199: 0 | I199: 0 | J199: 0 | K199: 0 | L199: 0 | M199: 0 | N199: 0 | O199: 0 | P199: 0 | Q199: 2300.89 | R199: 0 | S199: 0 | T199: 0 | U199: 0 | V199: 0 | W199: 0 | X199: 107 | Y199: 0 | Z199: 2407.89 | AA199: 2407.89 | AB199: 0 | AC199: 0
C200: Build IN Council | E200: 0 | F200: 0 | G200: 0 | H200: 0 | I200: 0 | J200: 0 | K200: 0 | L200: 0 | M200: 0 | N200: 0 | O200: 0 | P200: 0 | Q200: 0 | R200: 0 | S200: 0 | T200: 0 | U200: 0 | V200: 0 | W200: 0 | X200: 0 | Y200: 0 | Z200: 0 | AA200: 0 | AB200: 0 | AC200: 0
C201: Burns, Terry Lawrence Twshp Constable | E201: 68.15 | F201: 0 | G201: 0 | H201: 0 | I201: 0 | J201: 0 | K201: 0 | L201: 106 | M201: 0 | N201: 174.15 | O201: 174.15 | P201: 0 | Q201: 0 | R201: 0 | S201: 0 | T201: 0 | U201: 0 | V201: 0 | W201: 0 | X201: 1.75 | Y201: 0 | Z201: 1.75 | AA201: 1.75 | AB201: 0 | AC201: 0
C202: Cardinal Spirits LLC | D202: TA | E202: 759.38 | F202: 0 | G202: 0 | H202: 0 | I202: 0 | J202: 0 | K202: 0 | L202: 0 | M202: 0 | N202: =SUM(E202:M202) -> 759.38 | O202: 759.38 | P202: =SUM(N202-O202) -> 0 | Z202: =SUM(Q202:Y202) -> 0 | AB202: =SUM(Z202-AA202) -> 0 | AC202: =SUM(P202+AB202) -> 0
... 1314 more rows

Sheet Sheet2

Sheet Sheet3
